Body Name,Body,Service Level,Expense Type,Expense Code,Narrative,Date,Transaction Number,Amount,Capital and Revenue,Supplier Name,Supplier ID
South Ribble Borough Council,http://statistics.data.gov.uk/id/local-authority/30UE,Community Development,Grants & Subscriptions,4730,External works at ADDRESS REDACTED,02/02/2022,0000474749,865.83,Revenue,3d Environmental Ltd T/A 4DENV,0
South Ribble Borough Council,http://statistics.data.gov.uk/id/local-authority/30UE,Regulatory Services,Services,4570,Clearance works at ADDRESS REDACTED on 9.12.21 as per NAME REDACTED.,16/02/2022,0000475669,"1,745.00",Revenue,3d Environmental Ltd T/A 4DENV,0
South Ribble Borough Council,http://statistics.data.gov.uk/id/local-authority/30UE,Regulatory Services,Services,4570,Clearance of ADRESS REDACTED in default - NAME REDACTED.,16/02/2022,0000475824,"2,050.19",Revenue,3d Environmental Ltd T/A 4DENV,0
South Ribble Borough Council,http://statistics.data.gov.uk/id/local-authority/30UE,Recreation & Sport,Services,4510,"Ongoing Lifeguard Training - Bamber Bridge & Leyland, April 2021 2 Sessions, May 2021 3 Sessions, July 2021 2 Sessions, August 2021 x2",09/02/2022,0000475468,450.00,Revenue,Active Training Network Ltd,0
South Ribble Borough Council,http://statistics.data.gov.uk/id/local-authority/30UE,Community Development,Miscellaneous Expenses,4861,250 Madras 140g/m bags. 532 plus VAT with the new SRBC logo on. 250 classic 30ml hand sanitiser. Total 370 plus VAT,02/02/2022,0000475022,902.00,Revenue,AD OPTIONS LTD,0
South Ribble Borough Council,http://statistics.data.gov.uk/id/local-authority/30UE,Democratic Represent and  Mgnt,Furniture- Equip & Materials,4010,Please supply 1 x Italia Touch Bean to cup coffee machine to be installed at the Civic Centre conference suite as detailed,02/02/2022,0000475393,"3,200.00",Revenue,ADI CORPORATION T/A COFFEESELLER,0
South Ribble Borough Council,http://statistics.data.gov.uk/id/local-authority/30UE,Surplus or Deficit on Trading,Premises Repair & Mtne,2020,"Attend, inspect, repair hot water geezer, lack of hot water pressure, suspected heating return pump failure. As per NAME REDACTED request",16/02/2022,0000475854,480.00,Revenue,Ainscoe Plumbing & Heating Ltd,0
South Ribble Borough Council,http://statistics.data.gov.uk/id/local-authority/30UE,Capital,Capital Other Land & Bldgs,C230,"Project - Leyland Town Deal, Works - Provision of Internal Air quality Assessment as per NAME REDACTED request",16/02/2022,0000475624,530.00,Revenue,Air Quality Plan Limited,0
South Ribble Borough Council,http://statistics.data.gov.uk/id/local-authority/30UE,Recreation & Sport,Water,2511,7/11 to 6/12/21,16/02/2022,0000475129,461.26,Revenue,Anglian Water Business (National) t/as Wave Utilit,0
South Ribble Borough Council,http://statistics.data.gov.uk/id/local-authority/30UE,Recreation & Sport,Water,2511,7/7 to 6/8/21,16/02/2022,0000475217,477.03,Revenue,Anglian Water Business (National) t/as Wave Utilit,0
South Ribble Borough Council,http://statistics.data.gov.uk/id/local-authority/30UE,Recreation & Sport,Water,2511,7/8 to 6/9/21,16/02/2022,0000475218,946.56,Revenue,Anglian Water Business (National) t/as Wave Utilit,0
South Ribble Borough Council,http://statistics.data.gov.uk/id/local-authority/30UE,Recreation & Sport,Water,2511,7/10 to 6/11/21,16/02/2022,0000475219,491.53,Revenue,Anglian Water Business (National) t/as Wave Utilit,0
South Ribble Borough Council,http://statistics.data.gov.uk/id/local-authority/30UE,Recreation & Sport,Water,2511,7/12 to 6/1/22,16/02/2022,0000475771,"1,361.27",Revenue,Anglian Water Business (National) t/as Wave Utilit,0
South Ribble Borough Council,http://statistics.data.gov.uk/id/local-authority/30UE,Recreation & Sport,Water,2511,7/12 to 6/1/22,16/02/2022,0000475772,"1,431.47",Revenue,Anglian Water Business (National) t/as Wave Utilit,0
South Ribble Borough Council,http://statistics.data.gov.uk/id/local-authority/30UE,Recreation & Sport,Water,2511,7/121 to 6/1/22,16/02/2022,0000475773,998.59,Revenue,Anglian Water Business (National) t/as Wave Utilit,0
South Ribble Borough Council,http://statistics.data.gov.uk/id/local-authority/30UE,Capital,Capital Other Land & Bldgs,C230,R&D Surveys - Leyland Town Deal Project,09/02/2022,0000474763,"5,025.00",Revenue,APEC Environmental Ltd,0
South Ribble Borough Council,http://statistics.data.gov.uk/id/local-authority/30UE,Capital,Capital Other Land & Bldgs,C230,"Please undertake an R&D asbestos survey at Veron Carus Cricket and adjacent changing facility, PR1 9SN, as instructed by NAME REDACTED",02/02/2022,0000474969,570.00,Revenue,APEC Environmental Ltd,0
South Ribble Borough Council,http://statistics.data.gov.uk/id/local-authority/30UE,Central Support Services,Communications & Comuting,4243,"17/08/2021 21/1127 Goods/Services  1,588.80, 17/11/2021 22/0212 Goods/Services  150.00",16/02/2022,0000475876,"1,324.00",Revenue,APT LTD,0
South Ribble Borough Council,http://statistics.data.gov.uk/id/local-authority/30UE,Central Support Services,Employee Related Insurance,1800,AJG - Year 2 Insurance Brokerage and Consultancy  - 840.00,09/02/2022,0000475471,840.00,Revenue,Arthur J. Gallagher,0
South Ribble Borough Council,http://statistics.data.gov.uk/id/local-authority/30UE,Central Support Services,Employee Related Insurance,1800,Insurance Brokerage Arthur J Gallagher - Procurement final payment,09/02/2022,0000475496,630.00,Revenue,Arthur J. Gallagher,0
South Ribble Borough Council,http://statistics.data.gov.uk/id/local-authority/30UE,Central Support Services,Training Expenses,1402,"AEA Annual Conference 2022, Attendees: NAMES REDACTED",02/02/2022,0000475201,250.00,Revenue,ASSOC OF ELECTORAL ADMINISTRATORS LTD,0
South Ribble Borough Council,http://statistics.data.gov.uk/id/local-authority/30UE,Elections,Miscellaneous Expenses,4970,AEA Parish Matters Course - 18 January 2022. Attendees: NAMES REDACTED,02/02/2022,0000475505,375.00,Revenue,ASSOC OF ELECTORAL ADMINISTRATORS LTD,0
South Ribble Borough Council,http://statistics.data.gov.uk/id/local-authority/30UE,Development Control,Services,4541,Employment Land Review Update Study,16/02/2022,0000475915,"5,760.00",Revenue,BE LTD,0
South Ribble Borough Council,http://statistics.data.gov.uk/id/local-authority/30UE,Surplus or Deficit on Trading,Premises Repair & Mtne,2020,Roller shutter motor on the garage at Worden Park. To inspect and repair if possible. As per NAME REDACTED request. Worden park depot.,02/02/2022,0000475340,308.62,Revenue,BELEC ELECTRICAL LTD,0
South Ribble Borough Council,http://statistics.data.gov.uk/id/local-authority/30UE,Surplus or Deficit on Trading,Premises Repair & Mtne,2020,Longton Brickcroft. For the upgrade of external lighting as the current lighting is defective. As per est dated 20th Dec 2021 and NAME REDACTED,02/02/2022,0000475346,618.00,Revenue,BELEC ELECTRICAL LTD,0
South Ribble Borough Council,http://statistics.data.gov.uk/id/local-authority/30UE,Surplus or Deficit on Trading,Premises Repair & Mtne,2020,"Remedial electrical works at 14c Boxer Place, Labour: Test & Inspect. 1 x 5ft LED batten, 4 x Circuit breakers, 2 x RCD double metalclad sockets",02/02/2022,0000475348,837.00,Revenue,BELEC ELECTRICAL LTD,0
South Ribble Borough Council,http://statistics.data.gov.uk/id/local-authority/30UE,Open Spaces,Expenses,4657,Installation of additional sockets Hurst Grange Coach House.,09/02/2022,0000475350,311.00,Revenue,BELEC ELECTRICAL LTD,0
South Ribble Borough Council,http://statistics.data.gov.uk/id/local-authority/30UE,Open Spaces,Expenses,4657,Installation of electronic timer at Kingsfold and Moss Side Playgrounds,09/02/2022,0000475350,403.00,Revenue,BELEC ELECTRICAL LTD,0
South Ribble Borough Council,http://statistics.data.gov.uk/id/local-authority/30UE,Corporate Management,Premises Repair & Mtne,2023,Please undertake additional works to the CAB office at the Civic Centre as detailed in you costing dated 11th December 2020 ref OFFICE001,02/02/2022,0000475362,700.45,Revenue,BELEC ELECTRICAL LTD,0
South Ribble Borough Council,http://statistics.data.gov.uk/id/local-authority/30UE,Community Development,Miscellaneous Expenses,4851,Christmas Tree work for 2021,16/02/2022,0000475502,306.00,Revenue,BELEC ELECTRICAL LTD,0
South Ribble Borough Council,http://statistics.data.gov.uk/id/local-authority/30UE,Other Welfare Services,Furniture- Equip & Materials,4040,Oven Installation works at Resettlement properties,09/02/2022,0000475613,279.45,Revenue,BELEC ELECTRICAL LTD,0
South Ribble Borough Council,http://statistics.data.gov.uk/id/local-authority/30UE,Community Development,Furniture- Equip & Materials,4040,"1 x set of 10 1'' Cam Straps @ 3.60, 32 x Budget Buster Peg Pack @ 65, 1 x Gibbons Infl8 Fan @ 211.60, Delivery @ 65, VAT @ 55.32",23/02/2022,0000475971,276.60,Revenue,Betterbounce Limited,0
South Ribble Borough Council,http://statistics.data.gov.uk/id/local-authority/30UE,Recreation & Sport,Furniture- Equip & Materials,4040,"20 x Level 2 Badges (50 per pack) @ 20 per pack, 20 x Level Handbooks (50 per pack) @ 12 per pack, Delivery @ 24.96, Total @ 554.11",02/02/2022,0000475389,554.13,Revenue,BIKEABILITY TRUST,0
South Ribble Borough Council,http://statistics.data.gov.uk/id/local-authority/30UE,Recreation & Sport,Furniture- Equip & Materials,4040,"5 x Master Play Tennis Racket (set of 12), 1 x Bucket of 40 Red 75 Tennis Balls, 3 x Slazenger Shortex Foam Tennis Ball, Deliver @ 8.22",16/02/2022,0000475821,746.35,Revenue,Bishop Sports & Leisure Ltd,0
South Ribble Borough Council,http://statistics.data.gov.uk/id/local-authority/30UE,Development Control,Services,4510,Q3 heritage services - (period 1 October - 31 December 2021) Hours 7hrs @ 50.00 an hour. Mileage 22 miles @ 45p per mile,02/02/2022,0000475513,359.90,Revenue,BLACKBURN WITH DARWEN BOROUGH COUNCIL,0
South Ribble Borough Council,http://statistics.data.gov.uk/id/local-authority/30UE,Capital,Capital Other Land & Bldgs,C230,"Work: Site evaluation report and WSI statement at St. Mary�s Church graveyard as per NAME REDACTED request, Cost 4000",23/02/2022,0000476116,"2,900.00",Revenue,Bluestone Arachaeology,0
South Ribble Borough Council,http://statistics.data.gov.uk/id/local-authority/30UE,Capital,Capital Other Land & Bldgs,C230,"Work: Site evaluation report and WSI statement at St. Mary�s Church graveyard as per NAME REDACTED request, Cost 4000",23/02/2022,0000476117,550.00,Revenue,Bluestone Arachaeology,0
South Ribble Borough Council,http://statistics.data.gov.uk/id/local-authority/30UE,Central Support Services,Furniture- Equip & Materials,4010,1x Bottle oxygen & 1x Bottle acetylene,16/02/2022,0000475488,266.21,Revenue,BOC GASES,0
South Ribble Borough Council,http://statistics.data.gov.uk/id/local-authority/30UE,Open Spaces,Furniture- Equip & Materials,4046,450 Primrose Plants delivered to Moss Side Depot,09/02/2022,0000475541,354.00,Revenue,Boston Seeds Ltd,0
South Ribble Borough Council,http://statistics.data.gov.uk/id/local-authority/30UE,Surplus or Deficit on Trading,Premises Repair & Mtne,2021,"Annual contract 2021 / 2022 for care plan 2 at Holland House farm changing pavilion, Walton Le Dale",16/02/2022,0000475859,"1,011.20",Revenue,BRITISH GAS SERVICES (COMMERCIAL) LTD,0
South Ribble Borough Council,http://statistics.data.gov.uk/id/local-authority/30UE,Central Support Services,Premises Repair & Mtne,2021,"Annual contract 2021 / 2022 for care plan 2 at Moss Side Depot, 81 Bison Place, Leyland",16/02/2022,0000475883,"1,204.13",Revenue,BRITISH GAS SERVICES (COMMERCIAL) LTD,0
South Ribble Borough Council,http://statistics.data.gov.uk/id/local-authority/30UE,Economic Development,Premises Repair & Mtne,2021,Annual contract 2021 / 2022 for care plan 2 at Leyland Market,16/02/2022,0000475884,"1,184.30",Revenue,BRITISH GAS SERVICES (COMMERCIAL) LTD,0
South Ribble Borough Council,http://statistics.data.gov.uk/id/local-authority/30UE,Central Support Services,Premises Repair & Mtne,2021,"Annual contract 2021 / 2022 for care plan 2 at Moss Side Depot, 81 Bison Place, Leyland",16/02/2022,0000475885,116.56,Revenue,BRITISH GAS SERVICES (COMMERCIAL) LTD,0
South Ribble Borough Council,http://statistics.data.gov.uk/id/local-authority/30UE,Surplus or Deficit on Trading,Premises Repair & Mtne,2021,"Annual contract 2021 / 2022for care plan 2 for North Lodge, Worden Park",16/02/2022,0000475885,183.62,Revenue,BRITISH GAS SERVICES (COMMERCIAL) LTD,0
South Ribble Borough Council,http://statistics.data.gov.uk/id/local-authority/30UE,Central Support Services,Furniture- Equip & Materials,4040,Concentrator and lead RV14DTZ JFC17613,02/02/2022,0000475252,314.08,Revenue,Bucher Municipal Ltd,0
South Ribble Borough Council,http://statistics.data.gov.uk/id/local-authority/30UE,Central Support Services,Salaries,1121,Planning consultant to deal with Planning applications,16/02/2022,0000475917,"5,938.96",Revenue,CAPITA PROPERTY AND INFRASTRUCTURE LTD,0
South Ribble Borough Council,http://statistics.data.gov.uk/id/local-authority/30UE,Community Development,Miscellaneous Expenses,4851,Step up Grant funding for carpet in 3 bedroom property,09/02/2022,0000475583,"1,177.07",Revenue,Carpets Direct,0
South Ribble Borough Council,http://statistics.data.gov.uk/id/local-authority/30UE,Community Development,Grants & Subscriptions,4730,As per estimate 35397 for ADDRESS REDACTED,16/02/2022,0000475827,730.00,Revenue,Carpets Direct,0
South Ribble Borough Council,http://statistics.data.gov.uk/id/local-authority/30UE,Community Development,Grants & Subscriptions,4730,As per estimate 35396 for ADDRESS REDACTED,16/02/2022,0000475828,491.67,Revenue,Carpets Direct,0
South Ribble Borough Council,http://statistics.data.gov.uk/id/local-authority/30UE,Central Support Services,Salaries,1121,"Provision of a temporary Auditor, commencing 29/11/2021",09/02/2022,0000475253,768.00,Revenue,Castlefield Recruitment Limited,0
South Ribble Borough Council,http://statistics.data.gov.uk/id/local-authority/30UE,Central Support Services,Salaries,1121,"Provision of a temporary Auditor, commencing 29/11/2021",09/02/2022,0000475508,960.00,Revenue,Castlefield Recruitment Limited,0
South Ribble Borough Council,http://statistics.data.gov.uk/id/local-authority/30UE,Other Welfare Services,Furniture- Equip & Materials,4017,"Resettlement costs ADDRESSES REDACTED, Kitchen Equipment, Furniture, Bedding/curtains/towel, Misc Items, Delivery charges",02/02/2022,0000474925,"3,025.00",Revenue,CENTRAL LANCASHIRE AGE CONCERN LTD,0
South Ribble Borough Council,http://statistics.data.gov.uk/id/local-authority/30UE,Other Welfare Services,Furniture- Equip & Materials,4017,,02/02/2022,0000474925,390.00,Revenue,CENTRAL LANCASHIRE AGE CONCERN LTD,0
South Ribble Borough Council,http://statistics.data.gov.uk/id/local-authority/30UE,Central Support Services,Training Expenses,1402,"Course: Heat Pumps Training, Date: 7th March 2022, Location: Chesterfield, Whitting Valley Road, S41 9EY, Attendees: NAMES REDACTED",16/02/2022,0000474759,972.00,Revenue,Certsure LLP,0
South Ribble Borough Council,http://statistics.data.gov.uk/id/local-authority/30UE,Central Support Services,Other Employee Expenses,1741,MEMBERSHIP SUBSCRIPTION RENEWAL FOR NAME REDACTED 1 JANUARY - 31 DECEMBER 2022,09/02/2022,0000475607,344.00,Revenue,CHARTERED INST OF HOUSING,0
South Ribble Borough Council,http://statistics.data.gov.uk/id/local-authority/30UE,Surplus or Deficit on Trading,Premises Repair & Mtne,2035,"Please supply and install a new signalling device to the Museum, Church Road Leyland as agreed with facilities management",09/02/2022,0000475594,250.00,Revenue,CHUBB LTD,0
South Ribble Borough Council,http://statistics.data.gov.uk/id/local-authority/30UE,Recreation & Sport,Premises Repair & Mtne,2035,"1x replace contact fire door corridor surface, 1x replace detector with DT 15 corridor dt 15, 1x fit additional long range detector in sports hall",09/02/2022,0000475595,480.00,Revenue,CHUBB LTD,0
South Ribble Borough Council,http://statistics.data.gov.uk/id/local-authority/30UE,Central Support Services,Premises Repair & Mtne,2035,"Please supply, install and commission a replacement control panel to replace damaged Accenta Panel in outbuilding at Moss Side Depot.",16/02/2022,0000475798,447.00,Revenue,CHUBB LTD,0
South Ribble Borough Council,http://statistics.data.gov.uk/id/local-authority/30UE,Central Support Services,Premises Repair & Mtne,2035,"Please supply, install and commission 1 x set of point to point beams across roller shutter, to enable the roller shutter contacts to be disabled",16/02/2022,0000475798,457.00,Revenue,CHUBB LTD,0
South Ribble Borough Council,http://statistics.data.gov.uk/id/local-authority/30UE,Central Support Services,Furniture- Equip & Materials,4040,1 Air Bag YM70 GXP CBC0006,16/02/2022,0000475912,304.43,Revenue,CICELEY COMMERCIALS LTD,0
South Ribble Borough Council,http://statistics.data.gov.uk/id/local-authority/30UE,Homelessness,Grants & Subscriptions,4730,NAME REDACTED 7x 45 17.01.2022-24.01.2022.,02/02/2022,0000475554,315.00,Revenue,CLAREMONT HOTEL,0
South Ribble Borough Council,http://statistics.data.gov.uk/id/local-authority/30UE,Homelessness,Contractors Chges,5311,NAME REDACTED 8x 45 16.01.2022-24.01.2022.,02/02/2022,0000475554,360.00,Revenue,CLAREMONT HOTEL,0
South Ribble Borough Council,http://statistics.data.gov.uk/id/local-authority/30UE,Homelessness,Contractors Chges,5311,NAME REDACTED 24.01.2022 x 7 nights @ 45,02/02/2022,0000475559,315.00,Revenue,CLAREMONT HOTEL,0
South Ribble Borough Council,http://statistics.data.gov.uk/id/local-authority/30UE,Homelessness,Grants & Subscriptions,4730,25.01.22 x 7 nights @ 45.,02/02/2022,0000475560,315.00,Revenue,CLAREMONT HOTEL,0
South Ribble Borough Council,http://statistics.data.gov.uk/id/local-authority/30UE,Homelessness,Contractors Chges,5311,NAME REDACTED for 20.1.2022 and 23.1.2022.,02/02/2022,0000475569,297.00,Revenue,CLAREMONT HOTEL,0
South Ribble Borough Council,http://statistics.data.gov.uk/id/local-authority/30UE,Homelessness,Contractors Chges,5311,NAME REDACTED 7 x 45 31/01/2022 - 07/02/2022,16/02/2022,0000475714,315.00,Revenue,CLAREMONT HOTEL,0
South Ribble Borough Council,http://statistics.data.gov.uk/id/local-authority/30UE,Homelessness,Grants & Subscriptions,4730,NAME REDACTED 7 x 45 31/01/2022 - 07/02/2022,16/02/2022,0000475715,315.00,Revenue,CLAREMONT HOTEL,0
South Ribble Borough Council,http://statistics.data.gov.uk/id/local-authority/30UE,Homelessness,Contractors Chges,5311,NAME REDACTED 7 x 45 from 25.01.2022,16/02/2022,0000475718,315.00,Revenue,CLAREMONT HOTEL,0
South Ribble Borough Council,http://statistics.data.gov.uk/id/local-authority/30UE,Homelessness,Contractors Chges,5311,NAME REDACTED 7 x 45 14/02/2022-21/02/2022,23/02/2022,0000476101,315.00,Revenue,CLAREMONT HOTEL,0
South Ribble Borough Council,http://statistics.data.gov.uk/id/local-authority/30UE,Homelessness,Contractors Chges,5311,NAME REDACTED 7 x 45 14/02/2022-21/02/2022,23/02/2022,0000476101,315.00,Revenue,CLAREMONT HOTEL,0
South Ribble Borough Council,http://statistics.data.gov.uk/id/local-authority/30UE,Homelessness,Grants & Subscriptions,4730,NAME REDACTED 7 x 45 14/02/2022-21/02/2022,23/02/2022,0000476101,315.00,Revenue,CLAREMONT HOTEL,0
South Ribble Borough Council,http://statistics.data.gov.uk/id/local-authority/30UE,Homelessness,Contractors Chges,5311,NAME REDACTED 7 x 45 07.02.2022 - 14.02.2022,23/02/2022,0000476162,315.00,Revenue,CLAREMONT HOTEL,0
South Ribble Borough Council,http://statistics.data.gov.uk/id/local-authority/30UE,Homelessness,Grants & Subscriptions,4730,NAME REDACTED 7 x 45 07.02.2022 - 14.02.2022,23/02/2022,0000476163,315.00,Revenue,CLAREMONT HOTEL,0
South Ribble Borough Council,http://statistics.data.gov.uk/id/local-authority/30UE,Homelessness,Contractors Chges,5311,NAME REDACTED 7 x 45 07.02.2022 - 14.02.2022,23/02/2022,0000476164,315.00,Revenue,CLAREMONT HOTEL,0
South Ribble Borough Council,http://statistics.data.gov.uk/id/local-authority/30UE,Capital,Capital Other Land & Bldgs,C230,Description- additional work at Lostock st gerards as requested by NAME REDACTED,23/02/2022,0000476015,"5,503.33",Revenue,Cleveland Land Services (Guisborough) Limited,0
South Ribble Borough Council,http://statistics.data.gov.uk/id/local-authority/30UE,Capital,Capital Other Land & Bldgs,C230,"For the provision of works to the pavilion, car park extension and associated works at Bamber Bridge sports hub",16/02/2022,0000475906,"103,288.28",Revenue,Code Building Solutions Limited,0
South Ribble Borough Council,http://statistics.data.gov.uk/id/local-authority/30UE,Local Tax Collection,Communications & Comuting,4291,Postage November to March 2022,02/02/2022,0000475514,332.81,Revenue,CRITIQOM,0
South Ribble Borough Council,http://statistics.data.gov.uk/id/local-authority/30UE,Development Control,Services,4510,Printing and posting out of neighbour letters for planning application 07_2020_01034_ORM - reconsultation of amended plans - Penwortham Mills,02/02/2022,0000475523,355.47,Revenue,CRITIQOM,0
South Ribble Borough Council,http://statistics.data.gov.uk/id/local-authority/30UE,Local Tax Collection,Communications & Comuting,4291,Postage November to March 2022,02/02/2022,0000475535,"1,585.57",Revenue,CRITIQOM,0
South Ribble Borough Council,http://statistics.data.gov.uk/id/local-authority/30UE,Economic Development,Services,4510,South Ribble Resident Postal Survey,09/02/2022,0000475592,360.00,Revenue,CRITIQOM,0
South Ribble Borough Council,http://statistics.data.gov.uk/id/local-authority/30UE,Economic Development,Services,4510,South Ribble Resident Postal Survey,09/02/2022,0000475628,"1,218.67",Revenue,CRITIQOM,0
South Ribble Borough Council,http://statistics.data.gov.uk/id/local-authority/30UE,Economic Development,Services,4510,South Ribble Resident Postal Survey,09/02/2022,0000475629,929.27,Revenue,CRITIQOM,0
South Ribble Borough Council,http://statistics.data.gov.uk/id/local-authority/30UE,Economic Development,Services,4510,South Ribble Resident Postal Survey,09/02/2022,0000475630,300.00,Revenue,CRITIQOM,0
South Ribble Borough Council,http://statistics.data.gov.uk/id/local-authority/30UE,Local Tax Collection,Communications & Comuting,4291,Postage November to March 2022,16/02/2022,0000475801,631.78,Revenue,CRITIQOM,0
South Ribble Borough Council,http://statistics.data.gov.uk/id/local-authority/30UE,Capital,Capital Other Land & Bldgs,C230,Contra invoice to Credito Note 0054973,09/02/2022,0000475287,"4,670.00",Revenue,Curtins Consulting Ltd,0
South Ribble Borough Council,http://statistics.data.gov.uk/id/local-authority/30UE,Capital,Capital Other Land & Bldgs,C230,Provision of Traffic and Transport Engineering Services to support the Leyland Town Deal Development,09/02/2022,0000475353,"3,790.00",Revenue,Curtins Consulting Ltd,0
South Ribble Borough Council,http://statistics.data.gov.uk/id/local-authority/30UE,Capital,Capital Other Land & Bldgs,C230,Road Data Services - Parking Survey - Leyland Town Deal Project,02/02/2022,0000475396,"1,820.00",Revenue,Curtins Consulting Ltd,0
South Ribble Borough Council,http://statistics.data.gov.uk/id/local-authority/30UE,Capital,Capital Other Land & Bldgs,C230,Provision of Traffic and Transport Engineering Services to support the Leyland Town Deal Development,02/02/2022,0000475397,"9,490.00",Revenue,Curtins Consulting Ltd,0
South Ribble Borough Council,http://statistics.data.gov.uk/id/local-authority/30UE,Short Term Debtors,Balance Sheet,0030,CYCLESCHEME PACKAGE FOR NAME REDACTED,09/02/2022,0000475576,833.33,Revenue,CYCLESCHEME CO  UK,0
South Ribble Borough Council,http://statistics.data.gov.uk/id/local-authority/30UE,Central Support Services,Miscellaneous Expenses,4821,PROFESSIONAL SERVICES WITH REGARD TO AN EMPLOYMENT MATTER - 29 NOVEMBER - 24 DECEMBER 2021,02/02/2022,0000475504,"7,592.00",Revenue,DAC BEACHCROFT LLP,0
South Ribble Borough Council,http://statistics.data.gov.uk/id/local-authority/30UE,Central Support Services,Miscellaneous Expenses,4821,PROFESSION FEES IN RESPECT OF AN EMPLOYMENT MATTER - 5 - 28 JANUARY 2022,16/02/2022,0000475910,354.40,Revenue,DAC BEACHCROFT LLP,0
South Ribble Borough Council,http://statistics.data.gov.uk/id/local-authority/30UE,Homelessness,Contractors Chges,5311,NAME REDACTED 11/02/2022 - 11/03/2022.,23/02/2022,0000476173,340.00,Revenue,David Iddon & Corrina Kellett,0
South Ribble Borough Council,http://statistics.data.gov.uk/id/local-authority/30UE,Economic Development,Communications & Comuting,4242,Citizen Space Contract,23/02/2022,0000475922,"7,497.50",Revenue,Delib Ltd,0
South Ribble Borough Council,http://statistics.data.gov.uk/id/local-authority/30UE,Central Support Services,Furniture- Equip & Materials,4040,2 x air bellows 2 x bump stops 2 x fuel tank straps 1 x washer bottle 1 x fuel cap 2 x hopper prop bolts 10 x spring washer VA19KOX JFC17887,09/02/2022,0000475656,979.84,Revenue,DENNIS EAGLE LTD,0
South Ribble Borough Council,http://statistics.data.gov.uk/id/local-authority/30UE,Central Support Services,Furniture- Equip & Materials,4040,2 x air bellows 2 x bump stops 2 x fuel tank straps 1 x washer bottle 1 x fuel cap 2 x hopper prop bolts 10 x spring washer VA19KOX JFC17887,16/02/2022,0000475719,257.90,Revenue,DENNIS EAGLE LTD,0
South Ribble Borough Council,http://statistics.data.gov.uk/id/local-authority/30UE,Central Support Services,Premises Repair & Mtne,2020,"Re: Replacement light fittings, Moss Side Depot, Leyland, PR26 7QR; as per Our Ref: 0868 and NAME REDACTED",02/02/2022,0000475257,410.00,Revenue,DES Electrical Services Ltd,0
South Ribble Borough Council,http://statistics.data.gov.uk/id/local-authority/30UE,Central Support Services,Premises Repair & Mtne,2020,"Our Ref:1139/MB/RT Re-addressing of the fire alarm, Civic Centre, as per NAME REDACTED",02/02/2022,0000475259,840.00,Revenue,DES Electrical Services Ltd,0
South Ribble Borough Council,http://statistics.data.gov.uk/id/local-authority/30UE,Central Support Services,Premises Repair & Mtne,2020,Please add a door to the access system at the civic centre as detailed in your ref 1854/MB/RT,02/02/2022,0000475260,800.00,Revenue,DES Electrical Services Ltd,0
South Ribble Borough Council,http://statistics.data.gov.uk/id/local-authority/30UE,Central Support Services,Premises Repair & Mtne,2021,Service of Fire Damper System at Civic Centre as per NAME REDACTED and quote 0427/MB/RT 20th Sept 2021,02/02/2022,0000475261,608.00,Revenue,DES Electrical Services Ltd,0
South Ribble Borough Council,http://statistics.data.gov.uk/id/local-authority/30UE,Open Spaces,Furniture- Equip & Materials,4010,Haix Blue Mountain Boots,23/02/2022,0000475545,370.00,Revenue,DICK LEIGH,0
South Ribble Borough Council,http://statistics.data.gov.uk/id/local-authority/30UE,Open Spaces,Furniture- Equip & Materials,4010,Function Universal M Trousers,23/02/2022,0000475545,134.59,Revenue,DICK LEIGH,0
South Ribble Borough Council,http://statistics.data.gov.uk/id/local-authority/30UE,Open Spaces,Furniture- Equip & Materials,4010,Function Gloves Protect MS M/9,23/02/2022,0000475545,56.66,Revenue,DICK LEIGH,0
South Ribble Borough Council,http://statistics.data.gov.uk/id/local-authority/30UE,Open Spaces,Furniture- Equip & Materials,4010,Hi Viz Whistle,23/02/2022,0000475545,4.40,Revenue,DICK LEIGH,0
South Ribble Borough Council,http://statistics.data.gov.uk/id/local-authority/30UE,Open Spaces,Furniture- Equip & Materials,4010,Sharpening Kit.325 Chain,23/02/2022,0000475545,35.41,Revenue,DICK LEIGH,0
South Ribble Borough Council,http://statistics.data.gov.uk/id/local-authority/30UE,Capital,Capital Other Land & Bldgs,C230,"Rental of Temp Caf� unit for 'Folly caf�' Worden park. Unit will be supplied, installed, removed from site upon termination of the agreement.",02/02/2022,0000475297,"2,060.00",Revenue,DP STRUCTURES LTD,0
South Ribble Borough Council,http://statistics.data.gov.uk/id/local-authority/30UE,Central Support Services,Communications & Comuting,4260,MOBILE PHONES,23/02/2022,0000476210,"4,253.34",Revenue,EE Ltd,0
South Ribble Borough Council,http://statistics.data.gov.uk/id/local-authority/30UE,Central Support Services,Communications & Comuting,4260,MOBILE PHONES,23/02/2022,0000476211,"4,602.31",Revenue,EE Ltd,0
South Ribble Borough Council,http://statistics.data.gov.uk/id/local-authority/30UE,Central Support Services,Communications & Comuting,4260,NON VAT CHARGES,23/02/2022,0000476211,0.08,Revenue,EE Ltd,0
South Ribble Borough Council,http://statistics.data.gov.uk/id/local-authority/30UE,Central Support Services,Communications & Comuting,4260,MOBILES,23/02/2022,0000476212,"4,593.98",Revenue,EE Ltd,0
South Ribble Borough Council,http://statistics.data.gov.uk/id/local-authority/30UE,Central Support Services,Communications & Comuting,4260,NON VATABLE CHARGES,23/02/2022,0000476212,42.56,Revenue,EE Ltd,0
South Ribble Borough Council,http://statistics.data.gov.uk/id/local-authority/30UE,Central Support Services,Communications & Comuting,4260,MOBILE,23/02/2022,0000476213,"4,602.70",Revenue,EE Ltd,0
South Ribble Borough Council,http://statistics.data.gov.uk/id/local-authority/30UE,Central Support Services,Communications & Comuting,4260,MOBILE,23/02/2022,0000476214,"4,854.01",Revenue,EE Ltd,0
South Ribble Borough Council,http://statistics.data.gov.uk/id/local-authority/30UE,Central Support Services,Communications & Comuting,4260,MOBILE PHONES,23/02/2022,0000476215,"4,250.47",Revenue,EE Ltd,0
South Ribble Borough Council,http://statistics.data.gov.uk/id/local-authority/30UE,Central Support Services,Furniture- Equip & Materials,4013,"6 x Revera Venetian Blinds including fitting for The Leaders Office and The Cabinet Office, Order includes Priority Delivery of blinds for ASAP fitting",09/02/2022,0000475616,"1,050.00",Revenue,EMPORIUM BLINDS UK,0
South Ribble Borough Council,http://statistics.data.gov.uk/id/local-authority/30UE,Central Support Services,Furniture- Equip & Materials,4010,"For the supply of tools, equipment and ceiling tiles to the Civic Centre",16/02/2022,0000475731,538.85,Revenue,Encon Insulation Ltd,0
South Ribble Borough Council,http://statistics.data.gov.uk/id/local-authority/30UE,Central Support Services,Furniture- Equip & Materials,4040,9 x all blade cylinders- BIN1293,09/02/2022,0000475398,"1,823.15",Revenue,F R SHARROCK LTD,0
South Ribble Borough Council,http://statistics.data.gov.uk/id/local-authority/30UE,Democratic Represent and  Mgnt,Furniture- Equip & Materials,4010,Please provide Mayoral badges as per quotations below as discussed with NAME REDACTED,16/02/2022,0000475877,"2,703.57",Revenue,FATTORINI SALES & PRODUCTION,0
South Ribble Borough Council,http://statistics.data.gov.uk/id/local-authority/30UE,Waste Collection,Services,4570,Additional Bulky Collections- January 2022,23/02/2022,0000475789,387.45,Revenue,FCC Environment Services (UK) Ltd,0
South Ribble Borough Council,http://statistics.data.gov.uk/id/local-authority/30UE,Waste Collection,Services,4570,Additional WEEE collections- January 2022,23/02/2022,0000475789,239.76,Revenue,FCC Environment Services (UK) Ltd,0
South Ribble Borough Council,http://statistics.data.gov.uk/id/local-authority/30UE,Short Term Creditors,Balance Sheet,0030,ret bulk coll,23/02/2022,0000475789,-31.36,Revenue,FCC Environment Services (UK) Ltd,0
South Ribble Borough Council,http://statistics.data.gov.uk/id/local-authority/30UE,Waste Collection,Services,4570,Loaders Living wage pay rise January 2022.,23/02/2022,0000476011,"2,714.43",Revenue,FCC Environment Services (UK) Ltd,0
South Ribble Borough Council,http://statistics.data.gov.uk/id/local-authority/30UE,Surplus or Deficit on Trading,Services,4510,Professional services concerning Field Change Request application: Lease to Electric Blue Ltd to install electric vehicle charging equipment,02/02/2022,0000475283,300.00,Revenue,FIELDS IN TRUST,0
South Ribble Borough Council,http://statistics.data.gov.uk/id/local-authority/30UE,Central Support Services,Furniture- Equip & Materials,4040,FOOTBALL PITCH LINE MARKER PAINT 10LTRS PITCHMARKER Q2,02/02/2022,0000475231,498.24,Revenue,Fleet Line Markers Limited,0
South Ribble Borough Council,http://statistics.data.gov.uk/id/local-authority/30UE,Community Development,Miscellaneous Expenses,4861,Leyland Station Watering System,09/02/2022,0000475546,523.01,Revenue,Friends of Leyland Station,0
South Ribble Borough Council,http://statistics.data.gov.uk/id/local-authority/30UE,Recreation & Sport,Premises Repair & Mtne,2021,"2021/2022 service contract for Bamber Bridge Leisure Centre, 2 x visits to the filtration system, 1x balance tank cleaning, 2 x chemical dosing",16/02/2022,0000475516,300.00,Revenue,FT Leisure Ltd,0
South Ribble Borough Council,http://statistics.data.gov.uk/id/local-authority/30UE,Recreation & Sport,Premises Repair & Mtne,2021,"2021/2022 service contract for Penwortham Leisure Centre, 2x visits to the filtration system, 1x balance tank cleaning, 2x chemical dosing",16/02/2022,0000475519,300.00,Revenue,FT Leisure Ltd,0
South Ribble Borough Council,http://statistics.data.gov.uk/id/local-authority/30UE,Recreation & Sport,Premises Repair & Mtne,2021,"2021/2022 service contract for Bamber Bridge Leisure Centre, 2 x visits to the filtration system, 1x balance tank cleaning, 2 x chemical dosing",16/02/2022,0000475527,300.00,Revenue,FT Leisure Ltd,0
South Ribble Borough Council,http://statistics.data.gov.uk/id/local-authority/30UE,Recreation & Sport,Premises Repair & Mtne,2021,"2021/2022 service contract for Penwortham Leisure Centre, 2x visits to the filtration system, 1x balance tank cleaning, 2x chemical dosing",16/02/2022,0000475639,300.00,Revenue,FT Leisure Ltd,0
South Ribble Borough Council,http://statistics.data.gov.uk/id/local-authority/30UE,Recreation & Sport,Premises Repair & Mtne,2021,"2021/2022 service contract for Leyland Leisure Centre, 2x visits to the filtration system, 1x balance tank cleaning, 2x chemical dosing systems",16/02/2022,0000475923,300.00,Revenue,FT Leisure Ltd,0
South Ribble Borough Council,http://statistics.data.gov.uk/id/local-authority/30UE,Surplus or Deficit on Trading,Premises Repair & Mtne,2021,Annual Contract 2021/2022 for service oil boiler for 3 Farmyard Cottages on Worden Park,02/02/2022,0000475480,175.00,Revenue,GOS Heating Ltd,0
South Ribble Borough Council,http://statistics.data.gov.uk/id/local-authority/30UE,Surplus or Deficit on Trading,Premises Repair & Mtne,2021,Annual Contract 2021/2022 to service oil boiler at 4 Farmyard Cottages on Worden Park,02/02/2022,0000475480,175.00,Revenue,GOS Heating Ltd,0
South Ribble Borough Council,http://statistics.data.gov.uk/id/local-authority/30UE,Surplus or Deficit on Trading,Premises Repair & Mtne,2021,Annual Contract 2021/2022 to service oil boiler for Conservatory on Worden Park,02/02/2022,0000475480,175.00,Revenue,GOS Heating Ltd,0
South Ribble Borough Council,http://statistics.data.gov.uk/id/local-authority/30UE,Central Support Services,Premises Repair & Mtne,2020,Please install a pulse output meter on the gas supply pipework at the civic centre as detailed in the e-mail quote dated 19th January 2022,23/02/2022,0000476017,"5,780.00",Revenue,GOS Heating Ltd,0
South Ribble Borough Council,http://statistics.data.gov.uk/id/local-authority/30UE,Central Support Services,Premises Repair & Mtne,2020,"Please install a pulsed output meter on the incoming cold water main at the Civic Centre Leyland as detailed, quotation dated 19th January 2022.",23/02/2022,0000476017,"3,107.50",Revenue,GOS Heating Ltd,0
South Ribble Borough Council,http://statistics.data.gov.uk/id/local-authority/30UE,Capital,Capital Other Land & Bldgs,C230,"McKenzie Arms Site, PR5 6EE, Professional Services - Procurement, Project Management and Quantity Surveying Services",09/02/2022,0000475524,"2,887.50",Revenue,Gosling Consulting Limited,0
South Ribble Borough Council,http://statistics.data.gov.uk/id/local-authority/30UE,Capital,Capital Other Land & Bldgs,C230,"Please provide services to Worden Hall PM and QS support RIBA stage 4-7 - As per contract terms, Fee proposal and draw down schedule agreed",02/02/2022,0000475526,"3,850.00",Revenue,Gosling Consulting Limited,0
South Ribble Borough Council,http://statistics.data.gov.uk/id/local-authority/30UE,Capital,Capital Other Land & Bldgs,C230,"Provision of Quantity Surveyor Services, Procurement Support Services, RIBA Stage 3 / Leyland Town Deal Project as per NAME REDACTED",02/02/2022,0000475530,"1,607.00",Revenue,Gosling Consulting Limited,0
South Ribble Borough Council,http://statistics.data.gov.uk/id/local-authority/30UE,Capital,Capital Other Land & Bldgs,C230,Leyland Town Deal - Document Management Services,02/02/2022,0000475532,525.00,Revenue,Gosling Consulting Limited,0
South Ribble Borough Council,http://statistics.data.gov.uk/id/local-authority/30UE,Democratic Represent and  Mgnt,Training Expenses,1406,NAME REDACTED TO ATTEND VIRTUAL EVENT - LGBT + IN THE WORKPLACE CONFERENCE 2022 ON 16 JUNE 2022,02/02/2022,0000475517,399.00,Revenue,Government Events,0
South Ribble Borough Council,http://statistics.data.gov.uk/id/local-authority/30UE,Central Support Services,Training Expenses,1402,NAME REDACTED TO ATTEND 'EXCELLING IN THE ROLE OF DATA PROTECTION OFFICER' COURSE ON 26 JANUARY 2022 VIRTUALLY,16/02/2022,0000475931,345.00,Revenue,GOVNET COMMUNICATIONS,0
South Ribble Borough Council,http://statistics.data.gov.uk/id/local-authority/30UE,Central Support Services,Furniture- Equip & Materials,4040,GRAFFITI REMOVER TRANSGEL (5 LITRE),02/02/2022,0000475234,399.00,Revenue,Graffiti Removal Ltd,0
South Ribble Borough Council,http://statistics.data.gov.uk/id/local-authority/30UE,Recreation & Sport,Premises Repair & Mtne,2020,Bamber Bridge Leisure Centre,09/02/2022,0000475634,700.00,Revenue,GRAHAM SCHOFIELD ASSOCIATES,0
South Ribble Borough Council,http://statistics.data.gov.uk/id/local-authority/30UE,Recreation & Sport,Premises Repair & Mtne,2020,Leyland Leisure centre,09/02/2022,0000475635,700.00,Revenue,GRAHAM SCHOFIELD ASSOCIATES,0
South Ribble Borough Council,http://statistics.data.gov.uk/id/local-authority/30UE,Central Support Services,Furniture- Equip & Materials,4040,2 x DAF break pad kits - BIN 541,09/02/2022,0000475601,289.00,Revenue,H & J SERVICES LTD,0
South Ribble Borough Council,http://statistics.data.gov.uk/id/local-authority/30UE,Central Support Services,Furniture- Equip & Materials,4040,2x EKBS087- Volvo/Dennis pad kit- BIN 539,09/02/2022,0000475601,190.00,Revenue,H & J SERVICES LTD,0
South Ribble Borough Council,http://statistics.data.gov.uk/id/local-authority/30UE,Central Support Services,Furniture- Equip & Materials,4040,1 x Wear indicator set- BIN 541,09/02/2022,0000475601,25.00,Revenue,H & J SERVICES LTD,0
South Ribble Borough Council,http://statistics.data.gov.uk/id/local-authority/30UE,Open Spaces,Expenses,4657,x2 LIT-994824 Anti-wrapover swing bearing assemblies as per quote ref. S1789.,23/02/2022,0000475493,385.50,Revenue,HAGS SMP LTD,0
South Ribble Borough Council,http://statistics.data.gov.uk/id/local-authority/30UE,Open Spaces,Expenses,4657,x2 Tango seats as per ref S2362,23/02/2022,0000475495,381.54,Revenue,HAGS SMP LTD,0
South Ribble Borough Council,http://statistics.data.gov.uk/id/local-authority/30UE,Open Spaces,Expenses,4657,x2 Tango seats as per ref S2362,23/02/2022,0000475495,381.54,Revenue,HAGS SMP LTD,0
South Ribble Borough Council,http://statistics.data.gov.uk/id/local-authority/30UE,Open Spaces,Expenses,4657,"9 x  HAG8051193 End Slat, 6 x HAG8051195 Centre/Low Slat, 57 xHAG8008665 Screws",23/02/2022,0000475499,504.48,Revenue,HAGS SMP LTD,0
South Ribble Borough Council,http://statistics.data.gov.uk/id/local-authority/30UE,Open Spaces,Expenses,4657,Delivery,23/02/2022,0000475499,75.00,Revenue,HAGS SMP LTD,0
South Ribble Borough Council,http://statistics.data.gov.uk/id/local-authority/30UE,Central Support Services,Furniture- Equip & Materials,4040,forced through per NAME REDACTED as PO--49997 cancelled in error,09/02/2022,0000475743,"5,832.00",Revenue,HARRISONS PACKAGING LTD,0
South Ribble Borough Council,http://statistics.data.gov.uk/id/local-authority/30UE,Central Support Services,Training Expenses,1402,EXEMPT ACCOMMODATION COURSE FOR NAMES REDACTED JAN 2022,16/02/2022,0000475230,480.00,Revenue,HBINFO LTD,0
South Ribble Borough Council,http://statistics.data.gov.uk/id/local-authority/30UE,Short Term Creditors,Balance Sheet,0140,,23/02/2022,0000475582,398.00,Revenue,HM REVENUE & CUSTOMS,0
South Ribble Borough Council,http://statistics.data.gov.uk/id/local-authority/30UE,Short Term Creditors,Balance Sheet,0140,,23/02/2022,0000475744,"4,233.62",Revenue,HM REVENUE & CUSTOMS,0
South Ribble Borough Council,http://statistics.data.gov.uk/id/local-authority/30UE,Community Development,Miscellaneous Expenses,4851,Grant of 1000 towards Covid Vulnerable Project,23/02/2022,0000475964,"1,000.00",Revenue,HOOLE VILLAGE MEMORIAL HALL COMMITTEE,0
South Ribble Borough Council,http://statistics.data.gov.uk/id/local-authority/30UE,Democratic Represent and  Mgnt,Grants & Subscriptions,4720,LG INFORM PLUS MEMBERSHIP SUBSCRIPTION FOR SOUTH RIBBLE BOROUGH COUNCIL 1 APRIL 2022 - 31 MARCH 2023,16/02/2022,0000475551,"1,105.00",Revenue,IDEA IMPROVEMENT & DEV AGENCY for LOCAL GOV,0
South Ribble Borough Council,http://statistics.data.gov.uk/id/local-authority/30UE,Central Support Services,Communications & Comuting,4243,"Eros network licence, Eros Scanning network licence, Eros Scanning per user, PVC Auto network licence - Annual support & maintenance",16/02/2022,0000475390,"16,367.25",Revenue,IDOX PLC,0
South Ribble Borough Council,http://statistics.data.gov.uk/id/local-authority/30UE,Elections,Miscellaneous Expenses,4970,IDOX CONSULTANCY FOR INSTALLATION OF 'PILOT' EROS RELEASE IN BETA ENVIRONMENT AS PER QUOTATION REF: 22.50852,23/02/2022,0000475547,600.00,Revenue,IDOX PLC,0
South Ribble Borough Council,http://statistics.data.gov.uk/id/local-authority/30UE,Local Tax Collection,Services,4510,"CNG FUELS LTD AND OLD HOUSE, MOSS FARM",02/02/2022,0000475391,"4,900.00",Revenue,Inform CPI Ltd,0
South Ribble Borough Council,http://statistics.data.gov.uk/id/local-authority/30UE,Central Support Services,Communications & Comuting,4243,"Enghouse Communications platform, 40 Concurrent agents, Call recording, Wallboards, Pause and resume for payments, reporting",16/02/2022,0000475251,"25,951.48",Revenue,INSIGHT UK,0
South Ribble Borough Council,http://statistics.data.gov.uk/id/local-authority/30UE,Capital,Capital Other Land & Bldgs,C230,QC10 - QUICK SET CONCRETE,02/02/2022,0000475144,"1,367.52",Revenue,INSTARMAC GROUP PLC,0
South Ribble Borough Council,http://statistics.data.gov.uk/id/local-authority/30UE,Capital,Capital Other Land & Bldgs,C230,70 x prunus padus trees,02/02/2022,0000474090,40.60,Revenue,J A JONES & SONS,0
South Ribble Borough Council,http://statistics.data.gov.uk/id/local-authority/30UE,Capital,Capital Other Land & Bldgs,C230,"25 x Fruit trees (mix apple, plum and pear)",02/02/2022,0000474090,200.00,Revenue,J A JONES & SONS,0
South Ribble Borough Council,http://statistics.data.gov.uk/id/local-authority/30UE,Capital,Capital Other Land & Bldgs,C230,malus,02/02/2022,0000474090,112.50,Revenue,J A JONES & SONS,0
South Ribble Borough Council,http://statistics.data.gov.uk/id/local-authority/30UE,Capital,Capital Other Land & Bldgs,C230,"Order - trees only as perNAME REDACTED request, Amount - 18204.94",02/02/2022,0000474091,"6,480.00",Revenue,J A JONES & SONS,0
South Ribble Borough Council,http://statistics.data.gov.uk/id/local-authority/30UE,Capital,Capital Other Land & Bldgs,C230,"Order - Trees including delivery as per NAMES REDACTED request, Amount - 6020",02/02/2022,0000475262,"6,300.00",Revenue,J A JONES & SONS,0
South Ribble Borough Council,http://statistics.data.gov.uk/id/local-authority/30UE,Central Support Services,Salaries,1100,Recruitment Services: NAME REDACTED,02/02/2022,0000475295,"1,710.00",Revenue,James Andrews Recruitment Solutions Ltd,0
South Ribble Borough Council,http://statistics.data.gov.uk/id/local-authority/30UE,Central Support Services,Salaries,1100,Recruitment Services: NAME REDACTED,16/02/2022,0000475694,"1,710.00",Revenue,James Andrews Recruitment Solutions Ltd,0
South Ribble Borough Council,http://statistics.data.gov.uk/id/local-authority/30UE,Central Support Services,Salaries,1100,Recruitment Services: NAME REDACTED,16/02/2022,0000475738,"1,710.00",Revenue,James Andrews Recruitment Solutions Ltd,0
South Ribble Borough Council,http://statistics.data.gov.uk/id/local-authority/30UE,Central Support Services,Salaries,1100,Recruitment Services: NAME REDACTED,23/02/2022,0000475924,"1,710.00",Revenue,James Andrews Recruitment Solutions Ltd,0
South Ribble Borough Council,http://statistics.data.gov.uk/id/local-authority/30UE,Capital,Capital Other Land & Bldgs,C230,Please undertake works for the energy saving plan and meter monitoring  at the Civic Centre as detailed in your quotation reference Q13214,16/02/2022,0000475881,"16,745.49",Revenue,JBC CONTROL SYSTEM,0
South Ribble Borough Council,http://statistics.data.gov.uk/id/local-authority/30UE,Capital,Capital Other Land & Bldgs,C230,"Works - Fire safety - Civic, Depot, Kingsfold, Order is linked to the urgent decision waiver which was granted to bring all 3 sites into compliance.",09/02/2022,0000475528,"7,135.00",Revenue,JFN Integrated Solutions Ltd,0
South Ribble Borough Council,http://statistics.data.gov.uk/id/local-authority/30UE,Capital,Capital Other Land & Bldgs,C230,Out of hours work for passive fire works at the Civic Centre as per quotation ref JFN3725NS,09/02/2022,0000475528,"8,315.00",Revenue,JFN Integrated Solutions Ltd,0
South Ribble Borough Council,http://statistics.data.gov.uk/id/local-authority/30UE,Capital,Capital Other Land & Bldgs,C230,For the container on site for 40 wks at 43.00 as per invoice dated 31st Jan inv number JFN 7362 and agreed with NAME REDACTED,09/02/2022,0000475528,"2,100.00",Revenue,JFN Integrated Solutions Ltd,0
South Ribble Borough Council,http://statistics.data.gov.uk/id/local-authority/30UE,Capital,Capital Other Land & Bldgs,C230,For the provision of out of hours work in the ICT area as per quotation ref JFN3797NS. This does not include the cost for the weekly container hire.,09/02/2022,0000475640,"4,719.91",Revenue,JFN Integrated Solutions Ltd,0
South Ribble Borough Council,http://statistics.data.gov.uk/id/local-authority/30UE,Capital,Capital Other Land & Bldgs,C230,"1309/BLPA Bent Lane Play Area - As per NAME REDACTED request, Bent lane remediation, Interim Invoice as per valuation.",02/02/2022,0000475028,"49,995.32",Revenue,John Wade Groundworks Ltd t/a Wade Group,0
South Ribble Borough Council,http://statistics.data.gov.uk/id/local-authority/30UE,Open Spaces,Expenses,4657,"Path surface repair at Longton Library, Liverpool Road, Longton",23/02/2022,0000475354,841.00,Revenue,John Wade Groundworks Ltd t/a Wade Group,0
South Ribble Borough Council,http://statistics.data.gov.uk/id/local-authority/30UE,Capital,Capital Other Land & Bldgs,C230,"Works at Bellis way , Walton-le-Dale, Hurst Grange Playground, Penwortham and Moss Side park Leyland.",23/02/2022,0000475361,"7,303.00",Revenue,John Wade Groundworks Ltd t/a Wade Group,0
South Ribble Borough Council,http://statistics.data.gov.uk/id/local-authority/30UE,Open Spaces,Expenses,4657,"Works at Bellis way , Walton-le-Dale, Hurst Grange Playground, Penwortham and Moss Side park Leyland.",23/02/2022,0000475361,"8,224.50",Revenue,John Wade Groundworks Ltd t/a Wade Group,0
South Ribble Borough Council,http://statistics.data.gov.uk/id/local-authority/30UE,Capital,Capital Other Land & Bldgs,C230,"1309/BLPA Bent Lane Play Area - As per NAME REDACTED request, Ongoing hire of road panels at Bent Lane Play Area",16/02/2022,0000475914,"1,000.00",Revenue,John Wade Groundworks Ltd t/a Wade Group,0
South Ribble Borough Council,http://statistics.data.gov.uk/id/local-authority/30UE,Regulatory Services,Miscellaneous Expenses,4841,Purchase Order for advert NMC6141026 requested by NAME REDACTED,09/02/2022,0000475599,567.00,Revenue,JPI Media - JOHNSTON PUBLISHING (NORTH WEST),0
South Ribble Borough Council,http://statistics.data.gov.uk/id/local-authority/30UE,Surplus or Deficit on Trading,Miscellaneous Expenses,4842,Advertising package (Planning Notice for Withy Grove Park) on 28 January 2022,16/02/2022,0000475907,648.00,Revenue,JPI Media - JOHNSTON PUBLISHING (NORTH WEST),0
South Ribble Borough Council,http://statistics.data.gov.uk/id/local-authority/30UE,Surplus or Deficit on Trading,Miscellaneous Expenses,4842,Advertising package reference number NMC6140971 (Planning Notice Four Oaks Road) on 28 January 2022,16/02/2022,0000475909,648.00,Revenue,JPI Media - JOHNSTON PUBLISHING (NORTH WEST),0
South Ribble Borough Council,http://statistics.data.gov.uk/id/local-authority/30UE,Short Term Creditors,Balance Sheet,0001,,23/02/2022,0000475967,"2,500.00",Revenue,Kier Living Ltd,0
South Ribble Borough Council,http://statistics.data.gov.uk/id/local-authority/30UE,Central Support Services,Premises Repair & Mtne,2020,2014 Legionella work to the plant room at the Civic Centre (11998),09/02/2022,0000475648,400.00,Revenue,KNOWSLEY BLD & ENVIRONMENTAL SERVICES LT,0
South Ribble Borough Council,http://statistics.data.gov.uk/id/local-authority/30UE,Surplus or Deficit on Trading,Premises Repair & Mtne,2021,2021 / 2022 contract for water hygiene monitoring at Gregson Lane Pavilion,23/02/2022,0000475709,46.25,Revenue,KNOWSLEY BLD & ENVIRONMENTAL SERVICES LT,0
South Ribble Borough Council,http://statistics.data.gov.uk/id/local-authority/30UE,Surplus or Deficit on Trading,Premises Repair & Mtne,2021,2021 / 2022 contract for water hygiene monitoring at Hern Avenue Pavilion,23/02/2022,0000475709,46.25,Revenue,KNOWSLEY BLD & ENVIRONMENTAL SERVICES LT,0
South Ribble Borough Council,http://statistics.data.gov.uk/id/local-authority/30UE,Surplus or Deficit on Trading,Premises Repair & Mtne,2021,2021 / 2022 contract for water hygiene monitoring at Higher Walton Pavilion,23/02/2022,0000475709,46.25,Revenue,KNOWSLEY BLD & ENVIRONMENTAL SERVICES LT,0
South Ribble Borough Council,http://statistics.data.gov.uk/id/local-authority/30UE,Surplus or Deficit on Trading,Premises Repair & Mtne,2021,2021 / 2022 contract for water hygiene monitoring at Holme Pavilion,23/02/2022,0000475709,46.25,Revenue,KNOWSLEY BLD & ENVIRONMENTAL SERVICES LT,0
South Ribble Borough Council,http://statistics.data.gov.uk/id/local-authority/30UE,Surplus or Deficit on Trading,Premises Repair & Mtne,2021,2021 / 2022 contract for water hygiene monitoring at Hutton Pavilion,23/02/2022,0000475709,46.25,Revenue,KNOWSLEY BLD & ENVIRONMENTAL SERVICES LT,0
South Ribble Borough Council,http://statistics.data.gov.uk/id/local-authority/30UE,Surplus or Deficit on Trading,Premises Repair & Mtne,2021,2021 / 2022 contract for water hygiene monitoring at Kingsfold pavilion,23/02/2022,0000475709,54.00,Revenue,KNOWSLEY BLD & ENVIRONMENTAL SERVICES LT,0
South Ribble Borough Council,http://statistics.data.gov.uk/id/local-authority/30UE,Surplus or Deficit on Trading,Premises Repair & Mtne,2021,2021 / 2022 contract for water hygiene monitoring at sports pavilions Worden Park (formerly long pavilion),23/02/2022,0000475709,46.25,Revenue,KNOWSLEY BLD & ENVIRONMENTAL SERVICES LT,0
South Ribble Borough Council,http://statistics.data.gov.uk/id/local-authority/30UE,Surplus or Deficit on Trading,Premises Repair & Mtne,2021,2021 / 2022 contract for water hygiene monitoring at Moss Side Pavilion,23/02/2022,0000475709,54.00,Revenue,KNOWSLEY BLD & ENVIRONMENTAL SERVICES LT,0
South Ribble Borough Council,http://statistics.data.gov.uk/id/local-authority/30UE,Surplus or Deficit on Trading,Premises Repair & Mtne,2021,2021 / 2022 contract for water hygiene monitoring at Much Hoole Pavilion,23/02/2022,0000475709,46.25,Revenue,KNOWSLEY BLD & ENVIRONMENTAL SERVICES LT,0
South Ribble Borough Council,http://statistics.data.gov.uk/id/local-authority/30UE,Surplus or Deficit on Trading,Premises Repair & Mtne,2021,2021 / 2022 contract for water hygiene monitoring at Penwortham Holme,23/02/2022,0000475709,46.25,Revenue,KNOWSLEY BLD & ENVIRONMENTAL SERVICES LT,0
South Ribble Borough Council,http://statistics.data.gov.uk/id/local-authority/30UE,Surplus or Deficit on Trading,Premises Repair & Mtne,2021,2021 / 2022 contract for water hygiene monitoring at St Cuthbert's Pavilion,23/02/2022,0000475709,46.25,Revenue,KNOWSLEY BLD & ENVIRONMENTAL SERVICES LT,0
South Ribble Borough Council,http://statistics.data.gov.uk/id/local-authority/30UE,Surplus or Deficit on Trading,Premises Repair & Mtne,2021,2021 / 2022 contract for water hygiene monitoring at Withy Grove Pavilion,23/02/2022,0000475709,54.00,Revenue,KNOWSLEY BLD & ENVIRONMENTAL SERVICES LT,0
South Ribble Borough Council,http://statistics.data.gov.uk/id/local-authority/30UE,Surplus or Deficit on Trading,Premises Repair & Mtne,2021,2021 / 2022 contract for water hygiene monitoring at Holland House Farm Pavilion,23/02/2022,0000475709,46.25,Revenue,KNOWSLEY BLD & ENVIRONMENTAL SERVICES LT,0
South Ribble Borough Council,http://statistics.data.gov.uk/id/local-authority/30UE,Surplus or Deficit on Trading,Premises Repair & Mtne,2021,"2021 / 2022 contract for water hygiene monitoring at The Derby Wing, Worden Park",23/02/2022,0000475709,43.75,Revenue,KNOWSLEY BLD & ENVIRONMENTAL SERVICES LT,0
South Ribble Borough Council,http://statistics.data.gov.uk/id/local-authority/30UE,Surplus or Deficit on Trading,Premises Repair & Mtne,2021,2021 / 2022 contract for water hygiene monitoring at Carr Street Community Centre,23/02/2022,0000475709,43.75,Revenue,KNOWSLEY BLD & ENVIRONMENTAL SERVICES LT,0
South Ribble Borough Council,http://statistics.data.gov.uk/id/local-authority/30UE,Surplus or Deficit on Trading,Premises Repair & Mtne,2021,2021 / 2022 contract for water hygiene monitoring at Higher Walton Community Centre,23/02/2022,0000475709,43.75,Revenue,KNOWSLEY BLD & ENVIRONMENTAL SERVICES LT,0
South Ribble Borough Council,http://statistics.data.gov.uk/id/local-authority/30UE,Surplus or Deficit on Trading,Premises Repair & Mtne,2021,2021 / 2022 contract for water hygiene monitoring at Moss Side Community Centre,23/02/2022,0000475709,43.75,Revenue,KNOWSLEY BLD & ENVIRONMENTAL SERVICES LT,0
South Ribble Borough Council,http://statistics.data.gov.uk/id/local-authority/30UE,Surplus or Deficit on Trading,Premises Repair & Mtne,2021,2021 / 2022 contract for water hygiene monitoring at Worden Arts & Craft Centre,23/02/2022,0000475709,59.25,Revenue,KNOWSLEY BLD & ENVIRONMENTAL SERVICES LT,0
South Ribble Borough Council,http://statistics.data.gov.uk/id/local-authority/30UE,Economic Development,Premises Repair & Mtne,2021,2021 / 2022 contract for water hygiene monitoring at Leyland Market,23/02/2022,0000475709,43.75,Revenue,KNOWSLEY BLD & ENVIRONMENTAL SERVICES LT,0
South Ribble Borough Council,http://statistics.data.gov.uk/id/local-authority/30UE,Surplus or Deficit on Trading,Premises Repair & Mtne,2021,2021 / 2022  contract for water hygiene monitoring at Hurst Grange Park,23/02/2022,0000475709,43.75,Revenue,KNOWSLEY BLD & ENVIRONMENTAL SERVICES LT,0
South Ribble Borough Council,http://statistics.data.gov.uk/id/local-authority/30UE,Regulatory Services,Premises Repair & Mtne,2021,"2021 / 2022 contract, 2 visits per year for water hygiene monitoring at Crossroads toilets, Worden Park",23/02/2022,0000475709,23.25,Revenue,KNOWSLEY BLD & ENVIRONMENTAL SERVICES LT,0
South Ribble Borough Council,http://statistics.data.gov.uk/id/local-authority/30UE,Regulatory Services,Premises Repair & Mtne,2021,"2021 / 2022 contract, 2 visits per year for water hygiene monitoring at Hope Terrace Public toilets",23/02/2022,0000475709,23.25,Revenue,KNOWSLEY BLD & ENVIRONMENTAL SERVICES LT,0
South Ribble Borough Council,http://statistics.data.gov.uk/id/local-authority/30UE,Surplus or Deficit on Trading,Premises Repair & Mtne,2021,"2021 / 2022 contract, 2 visits per year for water hygiene monitoring at Longton Brick Croft",23/02/2022,0000475709,26.25,Revenue,KNOWSLEY BLD & ENVIRONMENTAL SERVICES LT,0
South Ribble Borough Council,http://statistics.data.gov.uk/id/local-authority/30UE,Regulatory Services,Premises Repair & Mtne,2021,"2021 / 2022 contract, 2 visits per year for water hygiene monitoring at Playground toilets, Worden Park",23/02/2022,0000475709,26.25,Revenue,KNOWSLEY BLD & ENVIRONMENTAL SERVICES LT,0
South Ribble Borough Council,http://statistics.data.gov.uk/id/local-authority/30UE,Surplus or Deficit on Trading,Premises Repair & Mtne,2021,2021 / 2022 contract for water hygiene monitoring at SR Museum & Exhibition Centre,23/02/2022,0000475709,26.25,Revenue,KNOWSLEY BLD & ENVIRONMENTAL SERVICES LT,0
South Ribble Borough Council,http://statistics.data.gov.uk/id/local-authority/30UE,Regulatory Services,Premises Repair & Mtne,2021,2021 / 2022 contract for water hygiene monitoring at Withy Grove public toilets,23/02/2022,0000475709,23.25,Revenue,KNOWSLEY BLD & ENVIRONMENTAL SERVICES LT,0
South Ribble Borough Council,http://statistics.data.gov.uk/id/local-authority/30UE,Central Support Services,Premises Repair & Mtne,2021,"2021 / 2022 contract, 12 visits per year for water hygiene monitoring at the Civic Centre, Leyland",23/02/2022,0000475709,185.75,Revenue,KNOWSLEY BLD & ENVIRONMENTAL SERVICES LT,0
South Ribble Borough Council,http://statistics.data.gov.uk/id/local-authority/30UE,Central Support Services,Premises Repair & Mtne,2021,2021 / 2022 contract for water hygiene monitoring at Moss Side Depot,23/02/2022,0000475709,112.75,Revenue,KNOWSLEY BLD & ENVIRONMENTAL SERVICES LT,0
South Ribble Borough Council,http://statistics.data.gov.uk/id/local-authority/30UE,Surplus or Deficit on Trading,Premises Repair & Mtne,2021,2021 / 2022 contract for water hygiene monitoring at Longton Pavilion,23/02/2022,0000475709,46.25,Revenue,KNOWSLEY BLD & ENVIRONMENTAL SERVICES LT,0
South Ribble Borough Council,http://statistics.data.gov.uk/id/local-authority/30UE,Central Support Services,Premises Repair & Mtne,2021,Additional 6 monthly sampling at Moss Side Depot,23/02/2022,0000475709,30.00,Revenue,KNOWSLEY BLD & ENVIRONMENTAL SERVICES LT,0
South Ribble Borough Council,http://statistics.data.gov.uk/id/local-authority/30UE,Surplus or Deficit on Trading,Premises Repair & Mtne,2020,"Please undertake a water quality risk assessment to the Holme pavilion, Bamber Bridge",16/02/2022,0000475783,150.00,Revenue,KNOWSLEY BLD & ENVIRONMENTAL SERVICES LT,0
South Ribble Borough Council,http://statistics.data.gov.uk/id/local-authority/30UE,Surplus or Deficit on Trading,Premises Repair & Mtne,2020,Please undertake a water quality risk assessment to Hutton pavilion,16/02/2022,0000475783,150.00,Revenue,KNOWSLEY BLD & ENVIRONMENTAL SERVICES LT,0
South Ribble Borough Council,http://statistics.data.gov.uk/id/local-authority/30UE,Surplus or Deficit on Trading,Premises Repair & Mtne,2020,Please undertake a water quality risk assessment to Kingfold Pavilion,16/02/2022,0000475783,150.00,Revenue,KNOWSLEY BLD & ENVIRONMENTAL SERVICES LT,0
South Ribble Borough Council,http://statistics.data.gov.uk/id/local-authority/30UE,Surplus or Deficit on Trading,Premises Repair & Mtne,2020,"Please undertake a water quality risk assessment to the pavilions, Worden Park",16/02/2022,0000475783,150.00,Revenue,KNOWSLEY BLD & ENVIRONMENTAL SERVICES LT,0
South Ribble Borough Council,http://statistics.data.gov.uk/id/local-authority/30UE,Surplus or Deficit on Trading,Premises Repair & Mtne,2020,Please undertake a water quality risk assessment to Longton pavilion,16/02/2022,0000475783,150.00,Revenue,KNOWSLEY BLD & ENVIRONMENTAL SERVICES LT,0
South Ribble Borough Council,http://statistics.data.gov.uk/id/local-authority/30UE,Surplus or Deficit on Trading,Premises Repair & Mtne,2020,Please undertake a water quality risk assessment to Moss Side pavilion,16/02/2022,0000475783,150.00,Revenue,KNOWSLEY BLD & ENVIRONMENTAL SERVICES LT,0
South Ribble Borough Council,http://statistics.data.gov.uk/id/local-authority/30UE,Surplus or Deficit on Trading,Premises Repair & Mtne,2020,Please undertake a water quality risk assessment to Much Hoole Pavilion,16/02/2022,0000475783,150.00,Revenue,KNOWSLEY BLD & ENVIRONMENTAL SERVICES LT,0
South Ribble Borough Council,http://statistics.data.gov.uk/id/local-authority/30UE,Surplus or Deficit on Trading,Premises Repair & Mtne,2020,Please undertake a water quality risk assessment to Penwortham Holme pavilion,16/02/2022,0000475783,150.00,Revenue,KNOWSLEY BLD & ENVIRONMENTAL SERVICES LT,0
South Ribble Borough Council,http://statistics.data.gov.uk/id/local-authority/30UE,Surplus or Deficit on Trading,Premises Repair & Mtne,2020,Please undertake a water quality risk assessment to St Cuthbert's pavilion,16/02/2022,0000475783,150.00,Revenue,KNOWSLEY BLD & ENVIRONMENTAL SERVICES LT,0
South Ribble Borough Council,http://statistics.data.gov.uk/id/local-authority/30UE,Surplus or Deficit on Trading,Premises Repair & Mtne,2020,"Please undertake a water quality risk assessment to Withy Grove pavilion, Bamber Bridge",16/02/2022,0000475783,150.00,Revenue,KNOWSLEY BLD & ENVIRONMENTAL SERVICES LT,0
South Ribble Borough Council,http://statistics.data.gov.uk/id/local-authority/30UE,Surplus or Deficit on Trading,Premises Repair & Mtne,2020,Please undertake a water quality risk assessment to Holland House Farm pavilion,16/02/2022,0000475783,150.00,Revenue,KNOWSLEY BLD & ENVIRONMENTAL SERVICES LT,0
South Ribble Borough Council,http://statistics.data.gov.uk/id/local-authority/30UE,Surplus or Deficit on Trading,Premises Repair & Mtne,2020,"Please undertake a water quality risk assessment to the Derby Wing, Worden Park",16/02/2022,0000475783,150.00,Revenue,KNOWSLEY BLD & ENVIRONMENTAL SERVICES LT,0
South Ribble Borough Council,http://statistics.data.gov.uk/id/local-authority/30UE,Surplus or Deficit on Trading,Premises Repair & Mtne,2020,"Please undertake a water quality risk assessment to Carr Street Community Centre, Bamber Bridge",16/02/2022,0000475783,150.00,Revenue,KNOWSLEY BLD & ENVIRONMENTAL SERVICES LT,0
South Ribble Borough Council,http://statistics.data.gov.uk/id/local-authority/30UE,Surplus or Deficit on Trading,Premises Repair & Mtne,2020,Please undertake a water quality risk assessment to Hurst Grange Park Depot,16/02/2022,0000475783,150.00,Revenue,KNOWSLEY BLD & ENVIRONMENTAL SERVICES LT,0
South Ribble Borough Council,http://statistics.data.gov.uk/id/local-authority/30UE,Surplus or Deficit on Trading,Premises Repair & Mtne,2020,Please undertake a water quality risk assessment to Higher Walton Community Centre,16/02/2022,0000475783,150.00,Revenue,KNOWSLEY BLD & ENVIRONMENTAL SERVICES LT,0
South Ribble Borough Council,http://statistics.data.gov.uk/id/local-authority/30UE,Surplus or Deficit on Trading,Premises Repair & Mtne,2020,Please undertake a water quality risk assessment to Moss Side Community Centre,16/02/2022,0000475783,150.00,Revenue,KNOWSLEY BLD & ENVIRONMENTAL SERVICES LT,0
South Ribble Borough Council,http://statistics.data.gov.uk/id/local-authority/30UE,Surplus or Deficit on Trading,Premises Repair & Mtne,2020,Please undertake a water quality risk assessment to Worden Park Arts & Craft Centre,16/02/2022,0000475783,150.00,Revenue,KNOWSLEY BLD & ENVIRONMENTAL SERVICES LT,0
South Ribble Borough Council,http://statistics.data.gov.uk/id/local-authority/30UE,Economic Development,Premises Repair & Mtne,2020,Please undertake a water quality risk assessment to Leyland Market,16/02/2022,0000475783,150.00,Revenue,KNOWSLEY BLD & ENVIRONMENTAL SERVICES LT,0
South Ribble Borough Council,http://statistics.data.gov.uk/id/local-authority/30UE,Regulatory Services,Premises Repair & Mtne,2020,"Please undertake a water quality risk assessment to Crossroads Toilets, Worden Park",16/02/2022,0000475783,150.00,Revenue,KNOWSLEY BLD & ENVIRONMENTAL SERVICES LT,0
South Ribble Borough Council,http://statistics.data.gov.uk/id/local-authority/30UE,Regulatory Services,Premises Repair & Mtne,2020,Please undertake a water quality risk assessment to Hope terrace Public Toilets,16/02/2022,0000475783,150.00,Revenue,KNOWSLEY BLD & ENVIRONMENTAL SERVICES LT,0
South Ribble Borough Council,http://statistics.data.gov.uk/id/local-authority/30UE,Surplus or Deficit on Trading,Premises Repair & Mtne,2020,Please undertake a water quality risk assessment to Longton Brickcroft visitors centre,16/02/2022,0000475783,150.00,Revenue,KNOWSLEY BLD & ENVIRONMENTAL SERVICES LT,0
South Ribble Borough Council,http://statistics.data.gov.uk/id/local-authority/30UE,Regulatory Services,Premises Repair & Mtne,2020,"Please undertake a water quality risk assessment to the playground toilets, Worden park",16/02/2022,0000475783,150.00,Revenue,KNOWSLEY BLD & ENVIRONMENTAL SERVICES LT,0
South Ribble Borough Council,http://statistics.data.gov.uk/id/local-authority/30UE,Surplus or Deficit on Trading,Premises Repair & Mtne,2020,"Please undertake a water quality risk assessment to the Museum, Leyland",16/02/2022,0000475783,150.00,Revenue,KNOWSLEY BLD & ENVIRONMENTAL SERVICES LT,0
South Ribble Borough Council,http://statistics.data.gov.uk/id/local-authority/30UE,Surplus or Deficit on Trading,Premises Repair & Mtne,2020,Please undertake a water quality risk assessment to Gregson Lane Pavilion,16/02/2022,0000475783,150.00,Revenue,KNOWSLEY BLD & ENVIRONMENTAL SERVICES LT,0
South Ribble Borough Council,http://statistics.data.gov.uk/id/local-authority/30UE,Surplus or Deficit on Trading,Premises Repair & Mtne,2020,"Please undertake a water quality risk assessment to Hern Avenue  pavilion, Lostock Hall",16/02/2022,0000475783,150.00,Revenue,KNOWSLEY BLD & ENVIRONMENTAL SERVICES LT,0
South Ribble Borough Council,http://statistics.data.gov.uk/id/local-authority/30UE,Surplus or Deficit on Trading,Premises Repair & Mtne,2020,Please undertake a water quality risk assessment to Higher Walton pavilion,16/02/2022,0000475783,150.00,Revenue,KNOWSLEY BLD & ENVIRONMENTAL SERVICES LT,0
South Ribble Borough Council,http://statistics.data.gov.uk/id/local-authority/30UE,Regulatory Services,Premises Repair & Mtne,2020,"Please undertake a water quality risk assessment to withy grove toilets, Bamber Bridge",16/02/2022,0000475783,150.00,Revenue,KNOWSLEY BLD & ENVIRONMENTAL SERVICES LT,0
South Ribble Borough Council,http://statistics.data.gov.uk/id/local-authority/30UE,Central Support Services,Premises Repair & Mtne,2020,"Please undertake a water quality risk assessment to the Civic Centre, Leyland",16/02/2022,0000475783,350.00,Revenue,KNOWSLEY BLD & ENVIRONMENTAL SERVICES LT,0
South Ribble Borough Council,http://statistics.data.gov.uk/id/local-authority/30UE,Central Support Services,Premises Repair & Mtne,2020,Please undertake a water quality risk assessment to Moss Side Depot,16/02/2022,0000475783,275.00,Revenue,KNOWSLEY BLD & ENVIRONMENTAL SERVICES LT,0
South Ribble Borough Council,http://statistics.data.gov.uk/id/local-authority/30UE,Surplus or Deficit on Trading,Premises Repair & Mtne,2020,"Legionella risk assessment for the Bungalow and gardeners depot, Worden Park",16/02/2022,0000475783,300.00,Revenue,KNOWSLEY BLD & ENVIRONMENTAL SERVICES LT,0
South Ribble Borough Council,http://statistics.data.gov.uk/id/local-authority/30UE,Surplus or Deficit on Trading,Premises Repair & Mtne,2021,2021 / 2022 contract for water hygiene monitoring at Gregson Lane Pavilion,23/02/2022,0000475893,46.25,Revenue,KNOWSLEY BLD & ENVIRONMENTAL SERVICES LT,0
South Ribble Borough Council,http://statistics.data.gov.uk/id/local-authority/30UE,Surplus or Deficit on Trading,Premises Repair & Mtne,2021,2021 / 2022 contract for water hygiene monitoring at Hern Avenue Pavilion,23/02/2022,0000475893,46.25,Revenue,KNOWSLEY BLD & ENVIRONMENTAL SERVICES LT,0
South Ribble Borough Council,http://statistics.data.gov.uk/id/local-authority/30UE,Surplus or Deficit on Trading,Premises Repair & Mtne,2021,2021 / 2022 contract for water hygiene monitoring at Higher Walton Pavilion,23/02/2022,0000475893,46.25,Revenue,KNOWSLEY BLD & ENVIRONMENTAL SERVICES LT,0
South Ribble Borough Council,http://statistics.data.gov.uk/id/local-authority/30UE,Surplus or Deficit on Trading,Premises Repair & Mtne,2021,2021 / 2022 contract for water hygiene monitoring at Holme Pavilion,23/02/2022,0000475893,46.25,Revenue,KNOWSLEY BLD & ENVIRONMENTAL SERVICES LT,0
South Ribble Borough Council,http://statistics.data.gov.uk/id/local-authority/30UE,Surplus or Deficit on Trading,Premises Repair & Mtne,2021,2021 / 2022 contract for water hygiene monitoring at Hutton Pavilion,23/02/2022,0000475893,46.25,Revenue,KNOWSLEY BLD & ENVIRONMENTAL SERVICES LT,0
South Ribble Borough Council,http://statistics.data.gov.uk/id/local-authority/30UE,Surplus or Deficit on Trading,Premises Repair & Mtne,2021,2021 / 2022 contract for water hygiene monitoring at Kingsfold pavilion,23/02/2022,0000475893,54.00,Revenue,KNOWSLEY BLD & ENVIRONMENTAL SERVICES LT,0
South Ribble Borough Council,http://statistics.data.gov.uk/id/local-authority/30UE,Surplus or Deficit on Trading,Premises Repair & Mtne,2021,2021 / 2022 contract for water hygiene monitoring at sports pavilions Worden Park (formerly long pavilion),23/02/2022,0000475893,46.25,Revenue,KNOWSLEY BLD & ENVIRONMENTAL SERVICES LT,0
South Ribble Borough Council,http://statistics.data.gov.uk/id/local-authority/30UE,Surplus or Deficit on Trading,Premises Repair & Mtne,2021,2021 / 2022 contract for water hygiene monitoring at Moss Side Pavilion,23/02/2022,0000475893,54.00,Revenue,KNOWSLEY BLD & ENVIRONMENTAL SERVICES LT,0
South Ribble Borough Council,http://statistics.data.gov.uk/id/local-authority/30UE,Surplus or Deficit on Trading,Premises Repair & Mtne,2021,2021 / 2022 contract for water hygiene monitoring at Much Hoole Pavilion,23/02/2022,0000475893,46.25,Revenue,KNOWSLEY BLD & ENVIRONMENTAL SERVICES LT,0
South Ribble Borough Council,http://statistics.data.gov.uk/id/local-authority/30UE,Surplus or Deficit on Trading,Premises Repair & Mtne,2021,2021 / 2022 contract for water hygiene monitoring at Penwortham Holme,23/02/2022,0000475893,46.25,Revenue,KNOWSLEY BLD & ENVIRONMENTAL SERVICES LT,0
South Ribble Borough Council,http://statistics.data.gov.uk/id/local-authority/30UE,Surplus or Deficit on Trading,Premises Repair & Mtne,2021,2021 / 2022 contract for water hygiene monitoring at St Cuthbert's Pavilion,23/02/2022,0000475893,46.25,Revenue,KNOWSLEY BLD & ENVIRONMENTAL SERVICES LT,0
South Ribble Borough Council,http://statistics.data.gov.uk/id/local-authority/30UE,Surplus or Deficit on Trading,Premises Repair & Mtne,2021,2021 / 2022 contract for water hygiene monitoring at Withy Grove Pavilion,23/02/2022,0000475893,54.00,Revenue,KNOWSLEY BLD & ENVIRONMENTAL SERVICES LT,0
South Ribble Borough Council,http://statistics.data.gov.uk/id/local-authority/30UE,Surplus or Deficit on Trading,Premises Repair & Mtne,2021,2021 / 2022 contract for water hygiene monitoring at Holland House Farm Pavilion,23/02/2022,0000475893,46.25,Revenue,KNOWSLEY BLD & ENVIRONMENTAL SERVICES LT,0
South Ribble Borough Council,http://statistics.data.gov.uk/id/local-authority/30UE,Surplus or Deficit on Trading,Premises Repair & Mtne,2021,"2021 / 2022 contract for water hygiene monitoring at The Derby Wing, Worden Park",23/02/2022,0000475893,43.75,Revenue,KNOWSLEY BLD & ENVIRONMENTAL SERVICES LT,0
South Ribble Borough Council,http://statistics.data.gov.uk/id/local-authority/30UE,Surplus or Deficit on Trading,Premises Repair & Mtne,2021,2021 / 2022 contract for water hygiene monitoring at Carr Street Community Centre,23/02/2022,0000475893,43.75,Revenue,KNOWSLEY BLD & ENVIRONMENTAL SERVICES LT,0
South Ribble Borough Council,http://statistics.data.gov.uk/id/local-authority/30UE,Surplus or Deficit on Trading,Premises Repair & Mtne,2021,2021 / 2022 contract for water hygiene monitoring at Higher Walton Community Centre,23/02/2022,0000475893,43.75,Revenue,KNOWSLEY BLD & ENVIRONMENTAL SERVICES LT,0
South Ribble Borough Council,http://statistics.data.gov.uk/id/local-authority/30UE,Surplus or Deficit on Trading,Premises Repair & Mtne,2021,2021 / 2022 contract for water hygiene monitoring at Moss Side Community Centre,23/02/2022,0000475893,43.75,Revenue,KNOWSLEY BLD & ENVIRONMENTAL SERVICES LT,0
South Ribble Borough Council,http://statistics.data.gov.uk/id/local-authority/30UE,Surplus or Deficit on Trading,Premises Repair & Mtne,2021,2021 / 2022 contract for water hygiene monitoring at Worden Arts & Craft Centre,23/02/2022,0000475893,59.25,Revenue,KNOWSLEY BLD & ENVIRONMENTAL SERVICES LT,0
South Ribble Borough Council,http://statistics.data.gov.uk/id/local-authority/30UE,Economic Development,Premises Repair & Mtne,2021,2021 / 2022 contract for water hygiene monitoring at Leyland Market,23/02/2022,0000475893,43.75,Revenue,KNOWSLEY BLD & ENVIRONMENTAL SERVICES LT,0
South Ribble Borough Council,http://statistics.data.gov.uk/id/local-authority/30UE,Surplus or Deficit on Trading,Premises Repair & Mtne,2021,2021 / 2022 contract for water hygiene monitoring at Hurst Grange Park,23/02/2022,0000475893,43.75,Revenue,KNOWSLEY BLD & ENVIRONMENTAL SERVICES LT,0
South Ribble Borough Council,http://statistics.data.gov.uk/id/local-authority/30UE,Regulatory Services,Premises Repair & Mtne,2021,"2021 / 2022 contract, 2 visits per year for water hygiene monitoring at Crossroads toilets, Worden Park",23/02/2022,0000475893,23.25,Revenue,KNOWSLEY BLD & ENVIRONMENTAL SERVICES LT,0
South Ribble Borough Council,http://statistics.data.gov.uk/id/local-authority/30UE,Regulatory Services,Premises Repair & Mtne,2021,"2021 / 2022 contract, 2 visits per year for water hygiene monitoring at Hope Terrace Public toilets",23/02/2022,0000475893,23.25,Revenue,KNOWSLEY BLD & ENVIRONMENTAL SERVICES LT,0
South Ribble Borough Council,http://statistics.data.gov.uk/id/local-authority/30UE,Surplus or Deficit on Trading,Premises Repair & Mtne,2021,"2021 / 2022 contract, 2 visits per year for water hygiene monitoring at Longton Brick Croft",23/02/2022,0000475893,26.25,Revenue,KNOWSLEY BLD & ENVIRONMENTAL SERVICES LT,0
South Ribble Borough Council,http://statistics.data.gov.uk/id/local-authority/30UE,Regulatory Services,Premises Repair & Mtne,2021,"2021 / 2022 contract, 2 visits per year for water hygiene monitoring at Playground toilets, Worden Park",23/02/2022,0000475893,26.25,Revenue,KNOWSLEY BLD & ENVIRONMENTAL SERVICES LT,0
South Ribble Borough Council,http://statistics.data.gov.uk/id/local-authority/30UE,Surplus or Deficit on Trading,Premises Repair & Mtne,2021,2021 / 2022 contract for water hygiene monitoring at SR Museum & Exhibition Centre,23/02/2022,0000475893,26.25,Revenue,KNOWSLEY BLD & ENVIRONMENTAL SERVICES LT,0
South Ribble Borough Council,http://statistics.data.gov.uk/id/local-authority/30UE,Regulatory Services,Premises Repair & Mtne,2021,2021 / 2022 contract for water hygiene monitoring at Withy Grove public toilets,23/02/2022,0000475893,23.25,Revenue,KNOWSLEY BLD & ENVIRONMENTAL SERVICES LT,0
South Ribble Borough Council,http://statistics.data.gov.uk/id/local-authority/30UE,Central Support Services,Premises Repair & Mtne,2021,"2021 / 2022 contract, 12 visits per year for water hygiene monitoring at the Civic Centre, Leyland",23/02/2022,0000475893,185.75,Revenue,KNOWSLEY BLD & ENVIRONMENTAL SERVICES LT,0
South Ribble Borough Council,http://statistics.data.gov.uk/id/local-authority/30UE,Central Support Services,Premises Repair & Mtne,2021,2021 / 2022 contract for water hygiene monitoring at Moss Side Depot,23/02/2022,0000475893,112.75,Revenue,KNOWSLEY BLD & ENVIRONMENTAL SERVICES LT,0
South Ribble Borough Council,http://statistics.data.gov.uk/id/local-authority/30UE,Surplus or Deficit on Trading,Premises Repair & Mtne,2021,2021 / 2022 contract for water hygiene monitoring at Longton Pavilion,23/02/2022,0000475893,46.25,Revenue,KNOWSLEY BLD & ENVIRONMENTAL SERVICES LT,0
South Ribble Borough Council,http://statistics.data.gov.uk/id/local-authority/30UE,Central Support Services,Premises Repair & Mtne,2021,Additional 6 monthly sampling at Moss Side Depot,23/02/2022,0000475893,30.00,Revenue,KNOWSLEY BLD & ENVIRONMENTAL SERVICES LT,0
South Ribble Borough Council,http://statistics.data.gov.uk/id/local-authority/30UE,Capital,Capital Other Land & Bldgs,C230,"Design and build new toddler and junior play area at Worden Park playground, Leyland",09/02/2022,0000475579,"5,000.00",Revenue,KOMPAN LTD,0
South Ribble Borough Council,http://statistics.data.gov.uk/id/local-authority/30UE,Unapportionable Central OHeads,Salaries,1161,comm leis deficit,16/02/2022,0000475282,"91,400.00",Revenue,LANCASHIRE COUNTY COUNCIL PENSION FUND,0
South Ribble Borough Council,http://statistics.data.gov.uk/id/local-authority/30UE,Central Support Services,Furniture- Equip & Materials,4040,1 x 205L 5w30 Engine oil C2/C3 low saps Varsynth ultra 1.68 ppl + vat,09/02/2022,0000475570,349.44,Revenue,LANCASHIRE OILS LTD,0
South Ribble Borough Council,http://statistics.data.gov.uk/id/local-authority/30UE,Central Support Services,Furniture- Equip & Materials,4040,1 x 5L Dot 4 ESP 21.95 + vat,09/02/2022,0000475570,21.95,Revenue,LANCASHIRE OILS LTD,0
South Ribble Borough Council,http://statistics.data.gov.uk/id/local-authority/30UE,Central Support Services,Furniture- Equip & Materials,4040,1 x 36 EP2 grease cartridges 1.71 ppc + vat,09/02/2022,0000475570,61.56,Revenue,LANCASHIRE OILS LTD,0
South Ribble Borough Council,http://statistics.data.gov.uk/id/local-authority/30UE,Central Support Services,Furniture- Equip & Materials,4040,4000 litres Bulk Adblu @0.49ppl,23/02/2022,0000475949,"1,960.00",Revenue,LANCASHIRE OILS LTD,0
South Ribble Borough Council,http://statistics.data.gov.uk/id/local-authority/30UE,Waste Collection,Waste Disposal,5112,October 2021 - Incineration of clinical waste,16/02/2022,0000475829,551.92,Revenue,LANCASHIRE TEACHING FT,0
South Ribble Borough Council,http://statistics.data.gov.uk/id/local-authority/30UE,Community Development,Services,4510,Planning and facilitating of 8 2hour confidence and well being workshops at secondary schools in South Ribble,02/02/2022,0000475235,"1,500.00",Revenue,Lancashire Youth Challenge,0
South Ribble Borough Council,http://statistics.data.gov.uk/id/local-authority/30UE,Non Domestic Rates Redistribut,Expenditure not in NCOS,4995,enterprize zone B-Rates income for 2020/21,16/02/2022,0000474812,"170,240.00",Revenue,LANCS COUNTY COUNCIL,0
South Ribble Borough Council,http://statistics.data.gov.uk/id/local-authority/30UE,Parking Services,Services,4516,Back Office Processing October-December 2020,16/02/2022,0000475899,552.00,Revenue,LANCS COUNTY COUNCIL,0
South Ribble Borough Council,http://statistics.data.gov.uk/id/local-authority/30UE,Parking Services,Services,4516,TEC Recharges October - December 2020,16/02/2022,0000475899,16.00,Revenue,LANCS COUNTY COUNCIL,0
South Ribble Borough Council,http://statistics.data.gov.uk/id/local-authority/30UE,Central Support Services,Furniture- Equip & Materials,4040,"1x full filter kit & oil, 1x brake pedal rubber, 1x recycled wide angle mirror, 4x under end caps, YD19 AUO, JFC17857 (NAME REDACTED)",23/02/2022,0000475453,454.72,Revenue,LANCS DAF,0
South Ribble Borough Council,http://statistics.data.gov.uk/id/local-authority/30UE,Central Support Services,Furniture- Equip & Materials,4040,1 x rear brake chamber YD19AYK JFC17888,09/02/2022,0000475602,483.45,Revenue,LANCS DAF,0
South Ribble Borough Council,http://statistics.data.gov.uk/id/local-authority/30UE,Central Support Services,Furniture- Equip & Materials,4040,mirror arm wide angle mirror JFC 17925 YD19 AUN,09/02/2022,0000475710,280.76,Revenue,LANCS DAF,0
South Ribble Borough Council,http://statistics.data.gov.uk/id/local-authority/30UE,Central Support Services,Furniture- Equip & Materials,4040,1 x full service kit plus oil YD19ATY JFC17902,16/02/2022,0000475804,415.69,Revenue,LANCS DAF,0
South Ribble Borough Council,http://statistics.data.gov.uk/id/local-authority/30UE,Central Support Services,Furniture- Equip & Materials,4040,"Track rod end, Left hand air bag, Right hand air bag, Brake pedal rubber, YD19 ATY, JFC 17902",16/02/2022,0000475823,878.30,Revenue,LANCS DAF,0
South Ribble Borough Council,http://statistics.data.gov.uk/id/local-authority/30UE,Central Support Services,Furniture- Equip & Materials,4040,Various parts to rectify accident damage YA19 NKD JFC17972,16/02/2022,0000475925,974.79,Revenue,LANCS DAF,0
South Ribble Borough Council,http://statistics.data.gov.uk/id/local-authority/30UE,Open Spaces,Services,4510,"Work: creation of willow tit habitat across several sites, collection of trees, ground preparation and planting as per NAME REDACTED request",02/02/2022,0000475265,"7,515.00",Revenue,LANCS WILDLIFE TRUST,0
South Ribble Borough Council,http://statistics.data.gov.uk/id/local-authority/30UE,Capital,Capital Other Land & Bldgs,C230,Retention monies (2.5%) from improvements to paths and fencing and installation of new pond overflow system Tarn Wood Penwortham,02/02/2022,0000475406,774.74,Revenue,LANDSCAPE ENGINEERING LIMITED,0
South Ribble Borough Council,http://statistics.data.gov.uk/id/local-authority/30UE,Capital,Capital Other Land & Bldgs,C230,PROVISION OF LANDSCAPE ARCHITECT AND PUBLIC REALM DESIGN SERVICES TO RIBA STAGE 3 - LEYLAND TOWN DEAL PROJECT,02/02/2022,0000475193,"14,500.00",Revenue,Lanpro Services Ltd,0
South Ribble Borough Council,http://statistics.data.gov.uk/id/local-authority/30UE,Capital,Capital Other Land & Bldgs,C230,PROVISION OF LANDSCAPE ARCHITECT AND PUBLIC REALM DESIGN SERVICES TO RIBA STAGE 3 - LEYLAND TOWN DEAL PROJECT,02/02/2022,0000475249,"3,861.00",Revenue,Lanpro Services Ltd,0
South Ribble Borough Council,http://statistics.data.gov.uk/id/local-authority/30UE,Capital,Capital Other Land & Bldgs,C230,PROVISION OF LANDSCAPE ARCHITECT AND PUBLIC REALM DESIGN SERVICES TO RIBA STAGE 3 - LEYLAND TOWN DEAL PROJECT,02/02/2022,0000475250,"13,134.00",Revenue,Lanpro Services Ltd,0
South Ribble Borough Council,http://statistics.data.gov.uk/id/local-authority/30UE,Capital,Capital Other Land & Bldgs,C230,Leyland Town Deal - Party Wall Survey,16/02/2022,0000475732,950.00,Revenue,LEA HOUGH & CO,0
South Ribble Borough Council,http://statistics.data.gov.uk/id/local-authority/30UE,Capital,Capital Other Land & Bldgs,C230,no vat,16/02/2022,0000475732,57.00,Revenue,LEA HOUGH & CO,0
South Ribble Borough Council,http://statistics.data.gov.uk/id/local-authority/30UE,Central Support Services,Furniture- Equip & Materials,4040,Air Cylinder BIN G046,09/02/2022,0000475477,690.00,Revenue,LIJ Fluid Power Ltd,0
South Ribble Borough Council,http://statistics.data.gov.uk/id/local-authority/30UE,Capital,Deferrd Chgs-Improvemnt Grants,C570,DFG WORK FOR ADAPTATION TO STEPS AT ADDRESS REDACTED AS PER SRBC PLANS AND QUOTE SUPPLIED OF 2387.95,09/02/2022,0000475680,"2,387.95",Revenue,LTL CONSTRUCTION & MAINTENANCE LTD,0
South Ribble Borough Council,http://statistics.data.gov.uk/id/local-authority/30UE,Capital,Deferrd Chgs-Improvemnt Grants,C570,DFG WORK FOR ADAPTATION TO CREATE EXTENSION AND RAMPS AT ADDRESS REDACTED AS PER SRBC PLANS AND QUOTE,09/02/2022,0000475681,"30,000.00",Revenue,LTL CONSTRUCTION & MAINTENANCE LTD,0
South Ribble Borough Council,http://statistics.data.gov.uk/id/local-authority/30UE,Central Support Services,Furniture- Equip & Materials,4013,For the supply and installation of Frosted Privacy Film to 6no. panes in Council Leader's office as per our recent survey,16/02/2022,0000475861,295.00,Revenue,LUSTALUX LTD,0
South Ribble Borough Council,http://statistics.data.gov.uk/id/local-authority/30UE,Capital,Deferrd Chgs-Improvemnt Grants,C570,"DFG WORKS FOR LEVEL ACCESS BATHROOM AT ADDRESS REDACTED. NEW PROGRESS PROPERTY, 50% OF TOTAL QUOTE",02/02/2022,0000475483,"3,203.25",Revenue,MAHONEY CONTRACTORS LTD,0
South Ribble Borough Council,http://statistics.data.gov.uk/id/local-authority/30UE,Capital,Deferrd Chgs-Improvemnt Grants,C570,"DFG WORKS FOR LEVEL ACCESS BATHROOM AT ADDRESS REDACTED. NEW PROGRESS PROPERTY, 50% OF TOTAL QUOTE",02/02/2022,0000475484,"1,797.24",Revenue,MAHONEY CONTRACTORS LTD,0
South Ribble Borough Council,http://statistics.data.gov.uk/id/local-authority/30UE,Capital,Deferrd Chgs-Improvemnt Grants,C570,"DFG WORKS FOR LEVEL ACCESS BATHROOM AT ADDRESS REDACTED. NEW PROGRESS PROPERTY, 50% OF TOTAL QUOTE",16/02/2022,0000475739,"2,515.14",Revenue,MAHONEY CONTRACTORS LTD,0
South Ribble Borough Council,http://statistics.data.gov.uk/id/local-authority/30UE,Community Development,Furniture- Equip & Materials,4040,"UV Sports Equipment for use on HAF Project. 4x Dodgeball Set, 1x Indoor Football Size 4, 1x UV Marking Cones, Sports Bubs Youth - 6x Pink,",23/02/2022,0000475970,260.08,Revenue,Mark S G Enterprises Limited,0
South Ribble Borough Council,http://statistics.data.gov.uk/id/local-authority/30UE,Capital,Deferrd Chgs-Improvemnt Grants,C570,DFG WORK FOR ADAPTATION TO CREATE BEDROOM/BATHROOM IN CONSERVATORY AT ADDRESS REDACTED AS PER SRBC PLANS,09/02/2022,0000475647,"2,000.00",Revenue,MBP CONSTRUCTION(NW) LTD,0
South Ribble Borough Council,http://statistics.data.gov.uk/id/local-authority/30UE,Surplus or Deficit on Trading,Premises Repair & Mtne,2020,"Please erect scaffolding, apply eve flashings, replace gutters and down pipes to ADDRESS REDACTED as per quotation ref 1120",02/02/2022,0000475525,"1,200.00",Revenue,Mick Bamber,0
South Ribble Borough Council,http://statistics.data.gov.uk/id/local-authority/30UE,Central Support Services,Training Expenses,1402,4 X PLACES ON THE CHAINSAW TRAINING COURSE ON 3 & 4 FEBRUARY 2022,09/02/2022,0000475558,"1,340.00",Revenue,Morton Training Limited,0
South Ribble Borough Council,http://statistics.data.gov.uk/id/local-authority/30UE,Central Support Services,Training Expenses,1402,4 X MEMBERS OF STAFF TO ATTEND LANTRA POLESAW TRAINING ON 10 MARCH 2022,16/02/2022,0000475609,680.00,Revenue,Morton Training Limited,0
South Ribble Borough Council,http://statistics.data.gov.uk/id/local-authority/30UE,Central Support Services,Services,4570,Service Wash PO20ZRX JFC17944,16/02/2022,0000475796,65.00,Revenue,NAYLORS TRANSPORT (LEYLAND) ltd,0
South Ribble Borough Council,http://statistics.data.gov.uk/id/local-authority/30UE,Central Support Services,Services,4570,Service Wash RV14DTZ JFC17945,16/02/2022,0000475796,65.00,Revenue,NAYLORS TRANSPORT (LEYLAND) ltd,0
South Ribble Borough Council,http://statistics.data.gov.uk/id/local-authority/30UE,Central Support Services,Services,4570,Service Wash PJ62UCM JFC17946,16/02/2022,0000475796,65.00,Revenue,NAYLORS TRANSPORT (LEYLAND) ltd,0
South Ribble Borough Council,http://statistics.data.gov.uk/id/local-authority/30UE,Central Support Services,Services,4570,Service Wash VO21LZJ JFC17947,16/02/2022,0000475796,65.00,Revenue,NAYLORS TRANSPORT (LEYLAND) ltd,0
South Ribble Borough Council,http://statistics.data.gov.uk/id/local-authority/30UE,Central Support Services,Services,4570,Service Wash VO65KPZ JFC17878,16/02/2022,0000475796,65.00,Revenue,NAYLORS TRANSPORT (LEYLAND) ltd,0
South Ribble Borough Council,http://statistics.data.gov.uk/id/local-authority/30UE,Central Support Services,Services,4570,MOT WASH RV14DTZ JFC17881,16/02/2022,0000475796,75.00,Revenue,NAYLORS TRANSPORT (LEYLAND) ltd,0
South Ribble Borough Council,http://statistics.data.gov.uk/id/local-authority/30UE,Central Support Services,Services,4570,Service Wash VX18KLC JFC17863,16/02/2022,0000475796,65.00,Revenue,NAYLORS TRANSPORT (LEYLAND) ltd,0
South Ribble Borough Council,http://statistics.data.gov.uk/id/local-authority/30UE,Central Support Services,Services,4570,Service Wash VK20NVV JFC17878,16/02/2022,0000475796,65.00,Revenue,NAYLORS TRANSPORT (LEYLAND) ltd,0
South Ribble Borough Council,http://statistics.data.gov.uk/id/local-authority/30UE,Central Support Services,Services,4570,"SRBC Estates/Property Services back scanning. 70 boxes, 150,000 images archive documents, 100,000 images live documents",16/02/2022,0000475239,984.00,Revenue,NEC Software Solutions UK Ltd,0
South Ribble Borough Council,http://statistics.data.gov.uk/id/local-authority/30UE,Central Support Services,Communications & Comuting,4247,PSN 344 Lot 1 DNS Services - Call Off Charges Year 1 and Year 2 - Community Charge Call Off Contract Period 1 and Period 2,23/02/2022,0000475575,765.94,Revenue,NOMINET UK,0
South Ribble Borough Council,http://statistics.data.gov.uk/id/local-authority/30UE,Capital,Capital Other Land & Bldgs,C230,"For the provision of Architectural Services (Stages 1-2) for the delivery of an Extra Care Facility at West Paddock, Leyland",09/02/2022,0000475577,"11,100.00",Revenue,NORR Consultants Limited,0
South Ribble Borough Council,http://statistics.data.gov.uk/id/local-authority/30UE,Community Development,Miscellaneous Expenses,4851,Fridge Freezer for Step up Grant,16/02/2022,0000475792,325.00,Revenue,NORTHWEST DOMESTIC SERVICES,0
South Ribble Borough Council,http://statistics.data.gov.uk/id/local-authority/30UE,Community Development,Grants & Subscriptions,4730,Supply of 1xCooker and 1xFridge Freezer for a step up grant application,23/02/2022,0000476004,550.00,Revenue,NORTHWEST DOMESTIC SERVICES,0
South Ribble Borough Council,http://statistics.data.gov.uk/id/local-authority/30UE,Recreation & Sport,Energy Costs,2303,1/12 to 31/12/21,02/02/2022,0000475275,"2,593.17",Revenue,NPOWER Business,0
South Ribble Borough Council,http://statistics.data.gov.uk/id/local-authority/30UE,Recreation & Sport,Energy Costs,2303,1/1 to 31/1/22,16/02/2022,0000475765,"3,541.29",Revenue,NPOWER Business,0
South Ribble Borough Council,http://statistics.data.gov.uk/id/local-authority/30UE,Recreation & Sport,Energy Costs,2303,1/1 to 31/1/22,16/02/2022,0000475766,"3,132.05",Revenue,NPOWER Business,0
South Ribble Borough Council,http://statistics.data.gov.uk/id/local-authority/30UE,Recreation & Sport,Energy Costs,2303,1/1 to 31/1/22,16/02/2022,0000475767,"5,082.38",Revenue,NPOWER Business,0
South Ribble Borough Council,http://statistics.data.gov.uk/id/local-authority/30UE,Central Support Services,Training Expenses,1402,NAME REDACTED TO ATTEND ASBESTOS AWARENESS / MANUAL HANDLING (HALF DAY EACH) AT CIVIC CENTRE - NOVEMBER 2021,16/02/2022,0000475033,495.00,Revenue,One Stop Hire,0
South Ribble Borough Council,http://statistics.data.gov.uk/id/local-authority/30UE,Central Support Services,Training Expenses,1402,NAME REDACTED TO ATTEND WORKING AT HEIGHTS/RISK ASSESSMENT TRAINING (HALF DAY EACH) - AT CIVIC CENTRE - NOV 2021,16/02/2022,0000475034,400.00,Revenue,One Stop Hire,0
South Ribble Borough Council,http://statistics.data.gov.uk/id/local-authority/30UE,Central Support Services,Communications & Comuting,4242,WEB BENEFITS CALCULATOR 2022 TO 2023,09/02/2022,0000475692,850.00,Revenue,OTECH LTD,0
South Ribble Borough Council,http://statistics.data.gov.uk/id/local-authority/30UE,Surplus or Deficit on Trading,Premises Repair & Mtne,2020,"As per NAME REDACTED request, Remove existing kitchen and dispose of site. Batten and board existing wall to make square in preparation",23/02/2022,0000475740,"6,254.52",Revenue,PDP PROPERTY SERVICES LTD,0
South Ribble Borough Council,http://statistics.data.gov.uk/id/local-authority/30UE,Central Support Services,Training Expenses,1408,"PROVISION OF WELLBEING, TELEPHONE CONSULTATIONS AND COUNSELLING ETC FROM 12 OCTOBER 2021 TO MARCH 2022",09/02/2022,0000475204,326.75,Revenue,People Asset Management,0
South Ribble Borough Council,http://statistics.data.gov.uk/id/local-authority/30UE,Central Support Services,Training Expenses,1408,,09/02/2022,0000475204,165.38,Revenue,People Asset Management,0
South Ribble Borough Council,http://statistics.data.gov.uk/id/local-authority/30UE,Central Support Services,Employee Related Insurance,1819,group life assurance,16/02/2022,0000475464,"3,211.54",Revenue,PHOENIX LIFE LTD,0
South Ribble Borough Council,http://statistics.data.gov.uk/id/local-authority/30UE,Central Support Services,Communications & Comuting,4243,"Sophos Safeguard 330 Network Protection Licence, Sophos Safeguard 330 Premium Support Licence - Renewal - 12 Months - Licence",02/02/2022,0000474594,"3,334.56",Revenue,PHOENIX SOFTWARE LTD,0
South Ribble Borough Council,http://statistics.data.gov.uk/id/local-authority/30UE,Recreation & Sport,Premises Repair & Mtne,2021,2021 / 2022 annual contract for the fixed wire testing for the wet & dry side at Bamber Bridge Leisure Centre as per quotation ref QT-2199985/1,16/02/2022,0000475153,397.50,Revenue,PHS Compliance,0
South Ribble Borough Council,http://statistics.data.gov.uk/id/local-authority/30UE,Recreation & Sport,Premises Repair & Mtne,2021,2021 / 2022 annual contract for the fixed wire testing for the wet & dry side at Leyland Leisure Centre as per quotation ref QT-2199998/1,02/02/2022,0000475173,255.00,Revenue,PHS Compliance,0
South Ribble Borough Council,http://statistics.data.gov.uk/id/local-authority/30UE,Central Support Services,Furniture- Equip & Materials,4012,2021 / 2022 annual contract for the provision of sanitary services to the Civic Centre as per your ref 105796,09/02/2022,0000473991,982.31,Revenue,PHS GROUP PLC,0
South Ribble Borough Council,http://statistics.data.gov.uk/id/local-authority/30UE,Central Support Services,Furniture- Equip & Materials,4012,2021 / 2022 annual contract for the provision of sanitary services to the Civic Centre as per your ref 105796,09/02/2022,0000474985,"4,194.89",Revenue,PHS GROUP PLC,0
South Ribble Borough Council,http://statistics.data.gov.uk/id/local-authority/30UE,Central Support Services,Miscellaneous Expenses,4821,"Professional services in respect of a planning matter - Clifton House, The Vineyard, Walton le Dale",23/02/2022,0000476005,540.00,Revenue,PIERS RILEY-SMITH,0
South Ribble Borough Council,http://statistics.data.gov.uk/id/local-authority/30UE,Capital,Capital Other Land & Bldgs,C230,Retention monies for Leadale Green Play Area,16/02/2022,0000475913,"2,625.00",Revenue,PLAY & LEISURE LTD,0
South Ribble Borough Council,http://statistics.data.gov.uk/id/local-authority/30UE,Democratic Represent and  Mgnt,Expenses,4630,"PLEASE SUPPLY BATCH OF 6 SRBC COMMUNITY PULL UP BANNERS 850MM X 2000MM STANDARD ROLLER, NAME REDACTED",02/02/2022,0000475358,390.00,Revenue,Poppy Signs Ltd,0
South Ribble Borough Council,http://statistics.data.gov.uk/id/local-authority/30UE,Capital,Capital Other Land & Bldgs,C230,24ft X 8ft Senior Wheeled Football Goal Package - Pair 2625 For Lostock Hall St Gerrards as per quote 23/8/2021 and per NAME REDACTED,09/02/2022,0000475573,"2,187.50",Revenue,Premier Leisure Stores Ltd T/A The SoccerStore,0
South Ribble Borough Council,http://statistics.data.gov.uk/id/local-authority/30UE,Central Support Services,Printing- Stat & Office Expens,4133,"Premier Paper supplies 2021-31/03/2022, Please quote this reference on all future invoices",16/02/2022,0000475786,309.83,Revenue,PREMIER PAPER GROUP LTD,0
South Ribble Borough Council,http://statistics.data.gov.uk/id/local-authority/30UE,Community Development,Miscellaneous Expenses,4842,To print Christmas What's On Guides as per quote 4071a,23/02/2022,0000476150,425.00,Revenue,Preston City Council,0
South Ribble Borough Council,http://statistics.data.gov.uk/id/local-authority/30UE,Central Support Services,Services,4570,Various Tyres TR238,02/02/2022,0000475236,520.87,Revenue,PRESTON TYRE SPECIALISTS,0
South Ribble Borough Council,http://statistics.data.gov.uk/id/local-authority/30UE,Central Support Services,Services,4570,"1x tyre RV14 DTZ, JFC17854 (NAME REDACTED)",09/02/2022,0000475454,285.39,Revenue,PRESTON TYRE SPECIALISTS,0
South Ribble Borough Council,http://statistics.data.gov.uk/id/local-authority/30UE,Elections,Communications & Comuting,4291,PI REFRESH 2022 - 1ST MAILING,02/02/2022,0000475520,"1,141.74",Revenue,PRINT IMAGE FACILITIES LLP,0
South Ribble Borough Council,http://statistics.data.gov.uk/id/local-authority/30UE,Elections,Communications & Comuting,4291,PI REFRESH 2022 - 2ND MAILING (INVOICE C501407),23/02/2022,0000475921,400.33,Revenue,PRINT IMAGE FACILITIES LLP,0
South Ribble Borough Council,http://statistics.data.gov.uk/id/local-authority/30UE,Homelessness,Grants & Subscriptions,4730,Rent ADDRESS REDACTED,02/02/2022,0000475470,513.19,Revenue,PROGRESS HOUSING GRP ref:DNSOU001,0
South Ribble Borough Council,http://statistics.data.gov.uk/id/local-authority/30UE,Homelessness,Grants & Subscriptions,4730,Agreed rent in advance for NAME REDACTED,23/02/2022,0000476147,338.83,Revenue,PROGRESS HOUSING GRP ref:DNSOU001,0
South Ribble Borough Council,http://statistics.data.gov.uk/id/local-authority/30UE,Economic Development,Miscellaneous Expenses,485A,"Website support and admin  20 hours, 2021 to 2022, businessinsouthribble.com, Cost 30 per hour by 20 hours",09/02/2022,0000474801,600.00,Revenue,PROTEAN SYSTEMS LIMITED,0
South Ribble Borough Council,http://statistics.data.gov.uk/id/local-authority/30UE,Capital,Capital Other Land & Bldgs,C230,"WORKS TO CONTAINERS as per NAME REDACTED request, 15TH SEPTEMBER 2021 Cladding, Capping, Boarding, Decoration",02/02/2022,0000475491,"23,000.00",Revenue,PSR & Sons Joiners & Building Contractors,0
South Ribble Borough Council,http://statistics.data.gov.uk/id/local-authority/30UE,Capital,Capital Other Land & Bldgs,C230,LABOUR,02/02/2022,0000475491,710.00,Revenue,PSR & Sons Joiners & Building Contractors,0
South Ribble Borough Council,http://statistics.data.gov.uk/id/local-authority/30UE,Capital,Capital Other Land & Bldgs,C230,"Works - Fire Doors at Kingsfold community centre, Amount - 15,480",02/02/2022,0000475497,"15,000.00",Revenue,PSR & Sons Joiners & Building Contractors,0
South Ribble Borough Council,http://statistics.data.gov.uk/id/local-authority/30UE,Capital,Capital Other Land & Bldgs,C230,LABOUR,02/02/2022,0000475497,480.00,Revenue,PSR & Sons Joiners & Building Contractors,0
South Ribble Borough Council,http://statistics.data.gov.uk/id/local-authority/30UE,Homelessness,Grants & Subscriptions,4730,Block booking for 2 rooms. 27 nights at 50 p/m (01/02/2022 - 28/02/2022 excluding night of 19/02/2022).,09/02/2022,0000475606,"2,700.00",Revenue,Purpleroomz,0
South Ribble Borough Council,http://statistics.data.gov.uk/id/local-authority/30UE,Homelessness,Contractors Chges,5311,NAME REDACTED - 31 x 48 - 01/01/2022 - 31/01/2022,16/02/2022,0000475677,"1,488.00",Revenue,Purpleroomz,0
South Ribble Borough Council,http://statistics.data.gov.uk/id/local-authority/30UE,Homelessness,Grants & Subscriptions,4730,NAME REDACTED - 26 x 48 - 05/01/2022 - 31/01/2022,16/02/2022,0000475677,"1,248.00",Revenue,Purpleroomz,0
South Ribble Borough Council,http://statistics.data.gov.uk/id/local-authority/30UE,Homelessness,Grants & Subscriptions,4730,NAME REDACTED - 25 x 48 - 06/01/2022 - 31/01/2022,16/02/2022,0000475677,"1,200.00",Revenue,Purpleroomz,0
South Ribble Borough Council,http://statistics.data.gov.uk/id/local-authority/30UE,Central Support Services,Services,4510,HEALTH AND SAFETY CONSULTANCY AND SUPPORT 2021/2022,02/02/2022,0000475039,"1,080.00",Revenue,QHS SOLUTIONS,0
South Ribble Borough Council,http://statistics.data.gov.uk/id/local-authority/30UE,Open Spaces,Contract Hire & Operating Leas,3212,1.5 ton digger on trailer - delivered to Hurst Grange Park from 05.01.22 for two weeks,23/02/2022,0000475756,805.20,Revenue,Readyplant Limited,0
South Ribble Borough Council,http://statistics.data.gov.uk/id/local-authority/30UE,Open Spaces,Contract Hire & Operating Leas,3212,2 ton dumper for 1 week from 05.01.22 for 2 weeks,23/02/2022,0000475756,318.80,Revenue,Readyplant Limited,0
South Ribble Borough Council,http://statistics.data.gov.uk/id/local-authority/30UE,Open Spaces,Contract Hire & Operating Leas,3212,fuel,23/02/2022,0000475756,38.40,Revenue,Readyplant Limited,0
South Ribble Borough Council,http://statistics.data.gov.uk/id/local-authority/30UE,Surplus or Deficit on Trading,Premises Repair & Mtne,2020,"Please inspect, isolate and repair blown water main running through Worden Park",09/02/2022,0000475472,900.00,Revenue,RED ROSE BUILDING MAINTENANCE,0
South Ribble Borough Council,http://statistics.data.gov.uk/id/local-authority/30UE,Surplus or Deficit on Trading,Premises Repair & Mtne,2020,MATERIALS,09/02/2022,0000475472,325.00,Revenue,RED ROSE BUILDING MAINTENANCE,0
South Ribble Borough Council,http://statistics.data.gov.uk/id/local-authority/30UE,Surplus or Deficit on Trading,Premises Repair & Mtne,2020,Please supply and erect motorway barriers to the right hand side of Hennel Brook Bridge as agreed with facilities management,02/02/2022,0000475536,750.00,Revenue,RED ROSE BUILDING MAINTENANCE,0
South Ribble Borough Council,http://statistics.data.gov.uk/id/local-authority/30UE,Surplus or Deficit on Trading,Premises Repair & Mtne,2020,LABOUR,02/02/2022,0000475536,700.00,Revenue,RED ROSE BUILDING MAINTENANCE,0
South Ribble Borough Council,http://statistics.data.gov.uk/id/local-authority/30UE,Recreation & Sport,Premises Repair & Mtne,2020,To replace and repair all broken and unsafe (loose) flags around Bamber bride Leisure centre. Following my walk round Friday.,09/02/2022,0000475540,450.00,Revenue,RED ROSE BUILDING MAINTENANCE,0
South Ribble Borough Council,http://statistics.data.gov.uk/id/local-authority/30UE,Recreation & Sport,Premises Repair & Mtne,2020,materials,09/02/2022,0000475540,75.00,Revenue,RED ROSE BUILDING MAINTENANCE,0
South Ribble Borough Council,http://statistics.data.gov.uk/id/local-authority/30UE,Surplus or Deficit on Trading,Premises Repair & Mtne,2020,Please attend Worden Park to investigate problem with the water pipe as the main line is blocked and fractured. On site pipe has replaced section.,09/02/2022,0000475615,"1,500.00",Revenue,RED ROSE BUILDING MAINTENANCE,0
South Ribble Borough Council,http://statistics.data.gov.uk/id/local-authority/30UE,Surplus or Deficit on Trading,Premises Repair & Mtne,2020,MATERIALS,09/02/2022,0000475615,850.00,Revenue,RED ROSE BUILDING MAINTENANCE,0
South Ribble Borough Council,http://statistics.data.gov.uk/id/local-authority/30UE,Surplus or Deficit on Trading,Premises Repair & Mtne,2020,Clear unit at 126 Brookfield place for Leyland town deal as per NAME REDACTED,23/02/2022,0000475953,"1,500.00",Revenue,RED ROSE BUILDING MAINTENANCE,0
South Ribble Borough Council,http://statistics.data.gov.uk/id/local-authority/30UE,Surplus or Deficit on Trading,Premises Repair & Mtne,2020,MATERIALS,23/02/2022,0000475953,600.00,Revenue,RED ROSE BUILDING MAINTENANCE,0
South Ribble Borough Council,http://statistics.data.gov.uk/id/local-authority/30UE,Homelessness,Grants & Subscriptions,4730,NAME REDACTED 8 weeks RIA,16/02/2022,0000475844,800.00,Revenue,REDDY & CO,0
South Ribble Borough Council,http://statistics.data.gov.uk/id/local-authority/30UE,Homelessness,Grants & Subscriptions,4730,NAME REDACTED 2 months RIA + top up x 26 weeks,16/02/2022,0000475845,"1,100.00",Revenue,REDDY & CO,0
South Ribble Borough Council,http://statistics.data.gov.uk/id/local-authority/30UE,Homelessness,Contractors Chges,5311,NAME REDACTED emergency placement ADDRESS REDACTED 23/12/2021 - 13/02/2022,16/02/2022,0000475846,"5,200.00",Revenue,REDDY & CO,0
South Ribble Borough Council,http://statistics.data.gov.uk/id/local-authority/30UE,Central Support Services,Furniture- Equip & Materials,4040,1 x Yoke Ram 5021824 BIN G030,02/02/2022,0000475511,700.00,Revenue,Refuse Vehicle Parts,0
South Ribble Borough Council,http://statistics.data.gov.uk/id/local-authority/30UE,Central Support Services,Furniture- Equip & Materials,4040,2 x Upper Tie Rod Pin BIN G056,02/02/2022,0000475511,117.10,Revenue,Refuse Vehicle Parts,0
South Ribble Borough Council,http://statistics.data.gov.uk/id/local-authority/30UE,Central Support Services,Furniture- Equip & Materials,4040,1 x Hyd Filter Pressure Switch P4400-4000 BIN G029,02/02/2022,0000475511,177.42,Revenue,Refuse Vehicle Parts,0
South Ribble Borough Council,http://statistics.data.gov.uk/id/local-authority/30UE,Central Support Services,Furniture- Equip & Materials,4040,1 x Latch 1005152 BIN G009,02/02/2022,0000475511,5.64,Revenue,Refuse Vehicle Parts,0
South Ribble Borough Council,http://statistics.data.gov.uk/id/local-authority/30UE,Central Support Services,Furniture- Equip & Materials,4040,10 x Yoke Ram Pin 222705 BIN G044,02/02/2022,0000475511,320.40,Revenue,Refuse Vehicle Parts,0
South Ribble Borough Council,http://statistics.data.gov.uk/id/local-authority/30UE,Central Support Services,Furniture- Equip & Materials,4040,3 x Composite Bush Yoke Ram 5012665 BIN G045,02/02/2022,0000475511,178.63,Revenue,Refuse Vehicle Parts,0
South Ribble Borough Council,http://statistics.data.gov.uk/id/local-authority/30UE,Central Support Services,Furniture- Equip & Materials,4040,1 x Bin Lift Ram 1000829 BIN G026,02/02/2022,0000475511,747.19,Revenue,Refuse Vehicle Parts,0
South Ribble Borough Council,http://statistics.data.gov.uk/id/local-authority/30UE,Central Support Services,Furniture- Equip & Materials,4040,1 x Proximity Switch 979941 BIN G008,02/02/2022,0000475511,42.84,Revenue,Refuse Vehicle Parts,0
South Ribble Borough Council,http://statistics.data.gov.uk/id/local-authority/30UE,Central Support Services,Furniture- Equip & Materials,4040,1 x Composite Bush Yoke Ram 5012665 BIN G045,02/02/2022,0000475511,59.54,Revenue,Refuse Vehicle Parts,0
South Ribble Borough Council,http://statistics.data.gov.uk/id/local-authority/30UE,Central Support Services,Furniture- Equip & Materials,4040,6 x Spring SF-VFR7174 85664-00 BIN G001,02/02/2022,0000475511,55.78,Revenue,Refuse Vehicle Parts,0
South Ribble Borough Council,http://statistics.data.gov.uk/id/local-authority/30UE,Central Support Services,Furniture- Equip & Materials,4040,1 x Barrier Arm 5012241 BIN G015,02/02/2022,0000475511,112.28,Revenue,Refuse Vehicle Parts,0
South Ribble Borough Council,http://statistics.data.gov.uk/id/local-authority/30UE,Central Support Services,Furniture- Equip & Materials,4040,1 x Bin Lift Locking Plate 5022908 BIN G058,02/02/2022,0000475511,6.51,Revenue,Refuse Vehicle Parts,0
South Ribble Borough Council,http://statistics.data.gov.uk/id/local-authority/30UE,Central Support Services,Furniture- Equip & Materials,4040,2 x Lower Tie Rod Pin GPM4 5034711 BIN G057,02/02/2022,0000475511,123.39,Revenue,Refuse Vehicle Parts,0
South Ribble Borough Council,http://statistics.data.gov.uk/id/local-authority/30UE,Central Support Services,Furniture- Equip & Materials,4040,2 x CARRIAGE,02/02/2022,0000475511,50.00,Revenue,Refuse Vehicle Parts,0
South Ribble Borough Council,http://statistics.data.gov.uk/id/local-authority/30UE,Central Support Services,Furniture- Equip & Materials,4040,1 x PTO adapter/extension YD19AYK JFC17888,16/02/2022,0000475720,340.19,Revenue,Refuse Vehicle Parts,0
South Ribble Borough Council,http://statistics.data.gov.uk/id/local-authority/30UE,Central Support Services,Furniture- Equip & Materials,4040,2 No Marker Light 5013400 @ 38.62 BIN G018,16/02/2022,0000475726,72.99,Revenue,Refuse Vehicle Parts,0
South Ribble Borough Council,http://statistics.data.gov.uk/id/local-authority/30UE,Central Support Services,Furniture- Equip & Materials,4040,3 No Spring 505531 @ 9.30 BIN G001,16/02/2022,0000475726,29.30,Revenue,Refuse Vehicle Parts,0
South Ribble Borough Council,http://statistics.data.gov.uk/id/local-authority/30UE,Central Support Services,Furniture- Equip & Materials,4040,1 No Yoke Ram Bush 5012665 @ 59.54 Bin G045,16/02/2022,0000475726,59.54,Revenue,Refuse Vehicle Parts,0
South Ribble Borough Council,http://statistics.data.gov.uk/id/local-authority/30UE,Central Support Services,Furniture- Equip & Materials,4040,2 No Bin Lift Arm Pin 288851 @ 23.09 BIN G047,16/02/2022,0000475726,46.17,Revenue,Refuse Vehicle Parts,0
South Ribble Borough Council,http://statistics.data.gov.uk/id/local-authority/30UE,Central Support Services,Furniture- Equip & Materials,4040,2 No Hydraulic Filter Kit 5025256-1 @ 216.30 BIn G027,16/02/2022,0000475726,432.59,Revenue,Refuse Vehicle Parts,0
South Ribble Borough Council,http://statistics.data.gov.uk/id/local-authority/30UE,Central Support Services,Furniture- Equip & Materials,4040,Carriage,16/02/2022,0000475726,25.00,Revenue,Refuse Vehicle Parts,0
South Ribble Borough Council,http://statistics.data.gov.uk/id/local-authority/30UE,Central Support Services,Furniture- Equip & Materials,4040,1 x PTO Extension Adapter YD19AUO JFC17879,23/02/2022,0000475728,340.19,Revenue,Refuse Vehicle Parts,0
South Ribble Borough Council,http://statistics.data.gov.uk/id/local-authority/30UE,Central Support Services,Furniture- Equip & Materials,4040,Parts required to rectify major fault on the back end YA19 NGN JFC17949,23/02/2022,0000475916,"1,532.04",Revenue,Refuse Vehicle Parts,0
South Ribble Borough Council,http://statistics.data.gov.uk/id/local-authority/30UE,Central Support Services,Furniture- Equip & Materials,4040,1 x PTO adapter YD19ATZ JFC17926,23/02/2022,0000475952,340.19,Revenue,Refuse Vehicle Parts,0
South Ribble Borough Council,http://statistics.data.gov.uk/id/local-authority/30UE,Tourism,Energy Costs,2301,"Please supply 1,000 ltrs of kerosene to Worden Park PR5 1DJ - contact NAMES REDACTED for access to be delivered asap",16/02/2022,0000475521,413.70,Revenue,RIBBLE FUEL OILS,0
South Ribble Borough Council,http://statistics.data.gov.uk/id/local-authority/30UE,Tourism,Energy Costs,2301,"Please supply 1,000 ltrs of kerosene to Worden park PR25 1DJ on Tuesday morning 1st February. Contact NAME REDACTED for access",16/02/2022,0000475860,638.86,Revenue,RIBBLE FUEL OILS,0
South Ribble Borough Council,http://statistics.data.gov.uk/id/local-authority/30UE,Central Support Services,Services,4570,1 x spec repair VA19KOX JFC17824,23/02/2022,0000475678,776.99,Revenue,RIBBLESDALE AUTO ELECTRICS 1992 LTD,0
South Ribble Borough Council,http://statistics.data.gov.uk/id/local-authority/30UE,Central Support Services,Services,4570,"Call out to faults, LH machine- no pressure as per your order 41881, RH machine - leak on header tank as per your order 41881",09/02/2022,0000475585,320.53,Revenue,Saanro International Ltd,0
South Ribble Borough Council,http://statistics.data.gov.uk/id/local-authority/30UE,Central Support Services,Services,4570,Replace retractable reel on RH machine as per your order 41903 PWR09RH - JFC17885,09/02/2022,0000475587,647.63,Revenue,Saanro International Ltd,0
South Ribble Borough Council,http://statistics.data.gov.uk/id/local-authority/30UE,Recreation & Sport,Furniture- Equip & Materials,4040,"5x Interlocking Floor Tile (4 Pack), 2x Folding Sack Truck, 1x Bungee Cord Assessment, 2 x Masterplug 13A 4-Gang 45m Cable Reel",23/02/2022,0000475908,301.57,Revenue,Screwfix,0
South Ribble Borough Council,http://statistics.data.gov.uk/id/local-authority/30UE,Community Development,Furniture- Equip & Materials,4040,"5x Interlocking Floor Tile (4 Pack), 2x Folding Sack Truck, 1x Bungee Cord Assessment, 2 x Masterplug 13A 4-Gang 45m Cable Reel",23/02/2022,0000475908,75.98,Revenue,Screwfix,0
South Ribble Borough Council,http://statistics.data.gov.uk/id/local-authority/30UE,Capital,Capital Other Land & Bldgs,C230,Consultancy support - Main Contractor Procurement - Extra Care (West Paddock) Project,16/02/2022,0000475548,"12,120.00",Revenue,SDA Consulting LLP,0
South Ribble Borough Council,http://statistics.data.gov.uk/id/local-authority/30UE,Capital,Capital Other Land & Bldgs,C230,Consultancy support - Main Contractor Procurement - Extra Care (West Paddock) Project,16/02/2022,0000475708,"6,060.00",Revenue,SDA Consulting LLP,0
South Ribble Borough Council,http://statistics.data.gov.uk/id/local-authority/30UE,Central Support Services,Salaries,1121,COST OF ENGAGING AGENCY LOCUM SOLICITOR FOR 4 DAYS PER WEEK FROM 7 SEPTEMBER 2021 UNTIL CHRISTMAS 2021,02/02/2022,0000475428,"1,824.00",Revenue,SELLICK PARTNERSHIP LTD,0
South Ribble Borough Council,http://statistics.data.gov.uk/id/local-authority/30UE,Central Support Services,Salaries,1121,COST OF ENGAGING AGENCY LOCUM SOLICITOR FOR 4 DAYS PER WEEK FROM 7 SEPTEMBER 2021 UNTIL CHRISTMAS 2021,09/02/2022,0000475590,"2,123.25",Revenue,SELLICK PARTNERSHIP LTD,0
South Ribble Borough Council,http://statistics.data.gov.uk/id/local-authority/30UE,Central Support Services,Salaries,1121,COST OF ENGAGING AGENCY LOCUM SOLICITOR FOR 4 DAYS PER WEEK FROM 7 SEPTEMBER 2021 UNTIL CHRISTMAS 2021,23/02/2022,0000475799,"2,009.25",Revenue,SELLICK PARTNERSHIP LTD,0
South Ribble Borough Council,http://statistics.data.gov.uk/id/local-authority/30UE,Central Support Services,Salaries,1121,COST OF ENGAGING AGENCY LOCUM SOLICITOR FOR 4 DAYS PER WEEK FROM 7 SEPTEMBER 2021 UNTIL CHRISTMAS 2021,23/02/2022,0000476006,"1,947.69",Revenue,SELLICK PARTNERSHIP LTD,0
South Ribble Borough Council,http://statistics.data.gov.uk/id/local-authority/30UE,Community Development,Rents & Rates,2402,Facility during Xmas HAF programme. 50 per day for 4 days. Facility use during Active Health interviews on 28th Jan,16/02/2022,0000475869,200.00,Revenue,Seven Stars Primary School,0
South Ribble Borough Council,http://statistics.data.gov.uk/id/local-authority/30UE,Recreation & Sport,Services,4510,Facility during Xmas HAF programme. 50 per day for 4 days. Facility use during Active Health interviews on 28th Jan,16/02/2022,0000475869,50.00,Revenue,Seven Stars Primary School,0
South Ribble Borough Council,http://statistics.data.gov.uk/id/local-authority/30UE,Development Control,Furniture- Equip & Materials,4010,"Lease rental and asset protection charge - HP XL-3600 Wide Format Printer, 95L1H039,PR25 1DH",02/02/2022,0000475363,"1,015.29",Revenue,Siemens Financial Services Limited,0
South Ribble Borough Council,http://statistics.data.gov.uk/id/local-authority/30UE,Capital,Capital Other Land & Bldgs,C230,"Refurbish existing internal / external cricket pavilion, and changing facility at Vernon Carus Site as per NAMES REDACTED request",09/02/2022,0000475654,"47,931.88",Revenue,SJJ Contracts Limited,0
South Ribble Borough Council,http://statistics.data.gov.uk/id/local-authority/30UE,Capital,Capital Other Land & Bldgs,C230,LABOUR,09/02/2022,0000475654,"18,318.12",Revenue,SJJ Contracts Limited,0
South Ribble Borough Council,http://statistics.data.gov.uk/id/local-authority/30UE,Central Support Services,Furniture- Equip & Materials,4010,Facilities officer uniform and boots as per NAME REDACTED request,02/02/2022,0000475333,255.90,Revenue,SMART IMAGE WORKWEAR,0
South Ribble Borough Council,http://statistics.data.gov.uk/id/local-authority/30UE,Central Support Services,"Clothes,uniform & laundry",4410,BODYWARMER - WROXHAM FORTRESS - SMALL c/w SRBC Logo Front Left Breast in White EMB- WM-WROX,23/02/2022,0000475626,26.88,Revenue,SMART IMAGE WORKWEAR,0
South Ribble Borough Council,http://statistics.data.gov.uk/id/local-authority/30UE,Central Support Services,"Clothes,uniform & laundry",4410,BODYWARMER - WROXHAM FORTRESS - MEDIUM c/w SRBC Logo Front Left Breast in White EMB- WM-WROX,23/02/2022,0000475626,94.08,Revenue,SMART IMAGE WORKWEAR,0
South Ribble Borough Council,http://statistics.data.gov.uk/id/local-authority/30UE,Central Support Services,"Clothes,uniform & laundry",4410,BODYWARMER - WROXHAM FORTRESS - LARGE c/w SRBC Logo Front Left Breast in White EMB- WM-WROX,23/02/2022,0000475626,120.96,Revenue,SMART IMAGE WORKWEAR,0
South Ribble Borough Council,http://statistics.data.gov.uk/id/local-authority/30UE,Central Support Services,"Clothes,uniform & laundry",4410,BODYWARMER - WROXHAM FORTRESS - EXTRA LARGE c/w SRBC Logo Front Left Breast in White EMB- WM-WROX,23/02/2022,0000475626,107.52,Revenue,SMART IMAGE WORKWEAR,0
South Ribble Borough Council,http://statistics.data.gov.uk/id/local-authority/30UE,Central Support Services,"Clothes,uniform & laundry",4410,BODYWARMER - WROXHAM FORTRESS - XXL c/w SRBC Logo Front Left Breast in White EMB- WM-WROX,23/02/2022,0000475626,53.76,Revenue,SMART IMAGE WORKWEAR,0
South Ribble Borough Council,http://statistics.data.gov.uk/id/local-authority/30UE,Central Support Services,"Clothes,uniform & laundry",4410,BASEBALL CAPS- HB-RAL,23/02/2022,0000475626,69.80,Revenue,SMART IMAGE WORKWEAR,0
South Ribble Borough Council,http://statistics.data.gov.uk/id/local-authority/30UE,Central Support Services,"Clothes,uniform & laundry",4410,MOUNTAIN CAPS- HMK-B35,23/02/2022,0000475626,159.52,Revenue,SMART IMAGE WORKWEAR,0
South Ribble Borough Council,http://statistics.data.gov.uk/id/local-authority/30UE,Central Support Services,"Clothes,uniform & laundry",4410,HI VIS TRAFFIC JACKET YELLOW EN471:2003 Medium WITH SRBC Logo Front Left Breast & Rear HS in COLOUR,02/02/2022,0000475332,138.78,Revenue,SMI Int Group Ltd,0
South Ribble Borough Council,http://statistics.data.gov.uk/id/local-authority/30UE,Central Support Services,"Clothes,uniform & laundry",4410,HI VIS TRAFFIC JACKET YELLOW EN471:2003 Large WITH SRBC Logo Front Left Breast & Rear HS in COLOUR,02/02/2022,0000475332,169.62,Revenue,SMI Int Group Ltd,0
South Ribble Borough Council,http://statistics.data.gov.uk/id/local-authority/30UE,Central Support Services,"Clothes,uniform & laundry",4410,HI VIS TRAFFIC JACKET YELLOW EN471:2003 Extra Large WITH SRBC Logo Front Left Breast & Rear HS in COLOUR,02/02/2022,0000475332,138.78,Revenue,SMI Int Group Ltd,0
South Ribble Borough Council,http://statistics.data.gov.uk/id/local-authority/30UE,Central Support Services,"Clothes,uniform & laundry",4410,HI VIS TRAFFIC JACKET YELLOW EN471:2003 2XL WITH SRBC Logo Front Left Breast & Rear HS in COLOUR,02/02/2022,0000475332,46.26,Revenue,SMI Int Group Ltd,0
South Ribble Borough Council,http://statistics.data.gov.uk/id/local-authority/30UE,Central Support Services,"Clothes,uniform & laundry",4410,HI VIS TRAFFIC JACKET YELLOW EN471:2003 3XL WITH SRBC Logo Front Left Breast & Rear HS in COLOUR,02/02/2022,0000475332,30.84,Revenue,SMI Int Group Ltd,0
South Ribble Borough Council,http://statistics.data.gov.uk/id/local-authority/30UE,Central Support Services,Communications & Comuting,4243,Cerberus FTP Server Enterprise Edition Single Licence - 1 Years Support & Updates Renewal by Cerberus,16/02/2022,0000475562,663.62,Revenue,SOFTCAT LIMITED,0
South Ribble Borough Council,http://statistics.data.gov.uk/id/local-authority/30UE,Short Term Creditors,Balance Sheet,0021,cash payments,23/02/2022,0000475781,"58,821.70",Revenue,South Ribble Leisure Ltd,0
South Ribble Borough Council,http://statistics.data.gov.uk/id/local-authority/30UE,Short Term Creditors,Balance Sheet,0021,card payments,23/02/2022,0000475782,"588,491.77",Revenue,South Ribble Leisure Ltd,0
South Ribble Borough Council,http://statistics.data.gov.uk/id/local-authority/30UE,Central Support Services,Contract Hire & Operating Leas,3212,Hire of VIN REDACTED for 4 weeks at 750 per week. 20.12.21-14.01.22,02/02/2022,0000475503,"3,000.00",Revenue,Southfield RCV Services Limited,0
South Ribble Borough Council,http://statistics.data.gov.uk/id/local-authority/30UE,Recreation & Sport,Services,4510,4 Places on the Level 3 Award for Tutors and Assessors in Sport @ 300 per place,02/02/2022,0000475355,300.00,Revenue,Sport Structures,0
South Ribble Borough Council,http://statistics.data.gov.uk/id/local-authority/30UE,Recreation & Sport,Services,4510,4 Places on the Level 3 Award for Tutors and Assessors in Sport @ 300 per place,02/02/2022,0000475356,900.00,Revenue,Sport Structures,0
South Ribble Borough Council,http://statistics.data.gov.uk/id/local-authority/30UE,Short Term Creditors,Balance Sheet,0030,monthly deductions,09/02/2022,0000475512,394.94,Revenue,ST CATHERINES HOSPICE PROMOTIONS LTD,0
South Ribble Borough Council,http://statistics.data.gov.uk/id/local-authority/30UE,Short Term Creditors,Balance Sheet,0030,less overpayment dec21,09/02/2022,0000475512,-8.72,Revenue,ST CATHERINES HOSPICE PROMOTIONS LTD,0
South Ribble Borough Council,http://statistics.data.gov.uk/id/local-authority/30UE,Community Development,Grants & Subscriptions,4730,Grant for covid-19 vulnerable re-socialisation project,23/02/2022,0000476131,"1,000.00",Revenue,St Mary`s Community Centre,0
South Ribble Borough Council,http://statistics.data.gov.uk/id/local-authority/30UE,Service Management & Support,Direct Transport Costs,3132,"16,000 litres diesel @ 115.37ppl into the feeder tank at Unit 81 Bison Place, Moss Side",02/02/2022,0000475229,"18,319.13",Revenue,Standard Fuel Oils LtdMain,0
South Ribble Borough Council,http://statistics.data.gov.uk/id/local-authority/30UE,Service Management & Support,Direct Transport Costs,3132,"16,000 litres diesel @ 116.50ppl into the feeder tank at Unit 81 Bison Place , Moss Side",23/02/2022,0000475956,"17,711.42",Revenue,Standard Fuel Oils LtdMain,0
South Ribble Borough Council,http://statistics.data.gov.uk/id/local-authority/30UE,Capital,Deferrd Chgs-Improvemnt Grants,C570,DFG WORK TO SUPPLY AND INSTALL A STAIRLIFT AND ASSOCIATED WORKS AT ADDRESS REDACTED AS PER QUOTE SUPPLIED,02/02/2022,0000475498,"4,430.00",Revenue,Stannah Lift Services Ltd,0
South Ribble Borough Council,http://statistics.data.gov.uk/id/local-authority/30UE,Capital,Deferrd Chgs-Improvemnt Grants,C570,DFG WORK TO SUPPLY AND INSTALL A STAIRLIFT AT ADDRESS REDACTED AS PER QUOTE SUPPLIED OF 3828.00,16/02/2022,0000475735,"3,728.00",Revenue,Stannah Lift Services Ltd,0
South Ribble Borough Council,http://statistics.data.gov.uk/id/local-authority/30UE,Capital,Deferrd Chgs-Improvemnt Grants,C570,DFG WORK TO SUPPLY AND INSTALL A STAIRLIFT AT ADDRESS REDACTED AS PER QUOTE SUPPLIED OF 2878.00,16/02/2022,0000475873,"2,878.00",Revenue,Stannah Lift Services Ltd,0
South Ribble Borough Council,http://statistics.data.gov.uk/id/local-authority/30UE,Central Support Services,Communications & Comuting,4241,"HP Smart Tank Plus 655 Wireless All-in-One - multifunction printer - colour Mfr, Name:HEWLETT PACKARD (HP INC)",23/02/2022,0000476038,308.00,Revenue,Starcom Technologies,0
South Ribble Borough Council,http://statistics.data.gov.uk/id/local-authority/30UE,Capital,Capital Other Land & Bldgs,C230,"Project Management, construction of the new Playing pitch at Bamber Bridge Leisure Centre, support the preparation for delivery of Development",23/02/2022,0000475814,"4,000.00",Revenue,Steve Wells Associates Ltd,0
South Ribble Borough Council,http://statistics.data.gov.uk/id/local-authority/30UE,Capital,Capital Other Land & Bldgs,C230,"For structural works to Vernon carus cricket pavilion, forming new sliding door openings. As per NAME REDACTED request",23/02/2022,0000475969,850.00,Revenue,STL Projects Ltd,0
South Ribble Borough Council,http://statistics.data.gov.uk/id/local-authority/30UE,Economic Development,Services,4510,Fees for architectural services for the 2nd entrance project at the Civic Centre as detailed in the proposal dated 24th January 2022,16/02/2022,0000475867,"4,000.00",Revenue,studio-LADY-Ltd,0
South Ribble Borough Council,http://statistics.data.gov.uk/id/local-authority/30UE,Community Development,Miscellaneous Expenses,4851,Catering for Leyland and Farington Friends Group event,09/02/2022,0000475334,329.40,Revenue,Style Catering,0
South Ribble Borough Council,http://statistics.data.gov.uk/id/local-authority/30UE,Economic Development,Miscellaneous Expenses,4851,Catering for Staff Thank You event - Friday 26 November 2021 - Moss Side Depot,02/02/2022,0000475401,296.46,Revenue,Style Catering,0
South Ribble Borough Council,http://statistics.data.gov.uk/id/local-authority/30UE,Community Development,Catering,4310,Catering for first aid course 13-16 September for 12 people,16/02/2022,0000475830,263.52,Revenue,Style Catering,0
South Ribble Borough Council,http://statistics.data.gov.uk/id/local-authority/30UE,Central Support Services,Premises Repair & Mtne,2020,Please replace the contact blocks to the movable wall in the conference centre at the Civic centre,16/02/2022,0000475872,660.00,Revenue,STYLE MOVEABLE PARTITION SPECIALISTS,0
South Ribble Borough Council,http://statistics.data.gov.uk/id/local-authority/30UE,Corporate Management,Miscellaneous Expenses,4851,Tempo Time Credits Quarter 4,09/02/2022,0000475138,"10,753.75",Revenue,Tempo Time Credits Ltd,0
South Ribble Borough Council,http://statistics.data.gov.uk/id/local-authority/30UE,Economic Development,Premises Repair & Mtne,2020,"2021 / 2022 service contract for 2 visits per year to the sliding doors at caf� door 1, caf� door 2, car park entrance left & right, at Leyland market",02/02/2022,0000475174,264.00,Revenue,THE AUTOMATIC DOOR COMPANY LTD,0
South Ribble Borough Council,http://statistics.data.gov.uk/id/local-authority/30UE,Central Support Services,Premises Repair & Mtne,2020,"2021 / 2022 annual service contract, 2 visit per year, for the outer, middle & inner bi-part slider, the double power swing door at the civic centre",02/02/2022,0000475266,330.00,Revenue,THE AUTOMATIC DOOR COMPANY LTD,0
South Ribble Borough Council,http://statistics.data.gov.uk/id/local-authority/30UE,Central Support Services,Premises Repair & Mtne,2020,"Works as per quotation QUO09790, fit two replacement mag locks to the 3rd floor doors, Civic Centre, supply two additional locks to site",16/02/2022,0000475911,"1,243.00",Revenue,THE AUTOMATIC DOOR COMPANY LTD,0
South Ribble Borough Council,http://statistics.data.gov.uk/id/local-authority/30UE,Central Support Services,Miscellaneous Expenses,4851,"ADVERTISEMENT RECRUITMENT ONLINE JOB LISTING BRONZE, LAW SOCIETY GAZETTE JOBS, 30 NOVEMBER 2021",02/02/2022,0000475522,995.00,Revenue,THE LAW SOCIETY,0
South Ribble Borough Council,http://statistics.data.gov.uk/id/local-authority/30UE,Central Support Services,Communications & Comuting,4247,"Fortinet, FortGate: FortiGate-1800F Hardware plus3 x2, Year 24x7 FortiCare and FortiGuard Unified Threat Protecti UTP, FortiManager Services",09/02/2022,0000473385,"80,798.43",Revenue,The Networking People (TNP) Ltd,0
South Ribble Borough Council,http://statistics.data.gov.uk/id/local-authority/30UE,Central Support Services,Salaries,1121,"For Agency Staff, NAME REDACTED to work a total of 81 days to first week of Jan 2022 - 7th Jan 2022 extension.",02/02/2022,0000475055,980.00,Revenue,The Oyster Partnership,0
South Ribble Borough Council,http://statistics.data.gov.uk/id/local-authority/30UE,Central Support Services,Salaries,1121,"For Agency Staff, NAME REDACTED to work a total of 81 days to first week of Jan 2022 - 7th Jan 2022 extension.",02/02/2022,0000475056,"1,400.00",Revenue,The Oyster Partnership,0
South Ribble Borough Council,http://statistics.data.gov.uk/id/local-authority/30UE,Central Support Services,Salaries,1121,"For Agency Staff, NAME REDACTED to work a total of 81 days to first week of Jan 2022 - 7th Jan 2022 extension.",09/02/2022,0000475205,"1,400.00",Revenue,The Oyster Partnership,0
South Ribble Borough Council,http://statistics.data.gov.uk/id/local-authority/30UE,Central Support Services,Training Expenses,1408,6 X FURTHER SESSIONS OF THERAPY FOR NAME REDACTED AS AGREED,09/02/2022,0000475267,280.00,Revenue,THE THERAPY COMPANY,0
South Ribble Borough Council,http://statistics.data.gov.uk/id/local-authority/30UE,Central Support Services,Energy Costs,2304,23/11 to 31/12/21,02/02/2022,0000475128,"2,516.15",Revenue,Total Gas & power Ltd,0
South Ribble Borough Council,http://statistics.data.gov.uk/id/local-authority/30UE,Open Spaces,Energy Costs,2303,1/12 to 31/12/21,02/02/2022,0000475178,647.37,Revenue,Total Gas & power Ltd,0
South Ribble Borough Council,http://statistics.data.gov.uk/id/local-authority/30UE,Surplus or Deficit on Trading,Energy Costs,2303,4/10 to 3/1/22,02/02/2022,0000475198,302.09,Revenue,Total Gas & power Ltd,0
South Ribble Borough Council,http://statistics.data.gov.uk/id/local-authority/30UE,Central Support Services,Energy Costs,2304,21/12 to 24/1/22,16/02/2022,0000475698,"2,714.65",Revenue,Total Gas & power Ltd,0
South Ribble Borough Council,http://statistics.data.gov.uk/id/local-authority/30UE,Economic Development,Energy Costs,2303,31/10 to 31/1/22,16/02/2022,0000475769,"1,939.60",Revenue,Total Gas & power Ltd,0
South Ribble Borough Council,http://statistics.data.gov.uk/id/local-authority/30UE,Central Support Services,Energy Costs,2303,31/10 to 31/1/22,16/02/2022,0000475770,"6,069.44",Revenue,Total Gas & power Ltd,0
South Ribble Borough Council,http://statistics.data.gov.uk/id/local-authority/30UE,Central Support Services,Energy Costs,2303,1/1 to 31/1/22,16/02/2022,0000475775,"3,738.57",Revenue,Total Gas & power Ltd,0
South Ribble Borough Council,http://statistics.data.gov.uk/id/local-authority/30UE,Tourism,Energy Costs,2303,1/1 to 31/1/22,16/02/2022,0000475777,"1,847.83",Revenue,Total Gas & power Ltd,0
South Ribble Borough Council,http://statistics.data.gov.uk/id/local-authority/30UE,Central Support Services,Energy Costs,2303,1/1 to 31/1/22,16/02/2022,0000475778,"2,823.04",Revenue,Total Gas & power Ltd,0
South Ribble Borough Council,http://statistics.data.gov.uk/id/local-authority/30UE,Open Spaces,Energy Costs,2303,4/11 to 3/2/22,16/02/2022,0000475810,933.07,Revenue,Total Gas & power Ltd,0
South Ribble Borough Council,http://statistics.data.gov.uk/id/local-authority/30UE,Open Spaces,Energy Costs,2303,1/1 to 31/1/22,16/02/2022,0000475818,759.31,Revenue,Total Gas & power Ltd,0
South Ribble Borough Council,http://statistics.data.gov.uk/id/local-authority/30UE,Open Spaces,Energy Costs,2303,2/11 to 31/1/22,16/02/2022,0000475890,613.77,Revenue,Total Gas & power Ltd,0
South Ribble Borough Council,http://statistics.data.gov.uk/id/local-authority/30UE,Culture & Heritage,Energy Costs,2304,31/12 to 31/1/22,16/02/2022,0000475904,655.39,Revenue,Total Gas & power Ltd,0
South Ribble Borough Council,http://statistics.data.gov.uk/id/local-authority/30UE,Open Spaces,Energy Costs,2304,31/10 to 31/1/22,16/02/2022,0000475905,395.20,Revenue,Total Gas & power Ltd,0
South Ribble Borough Council,http://statistics.data.gov.uk/id/local-authority/30UE,Service Management & Support,Services,4570,Annual Fuel Hub Software Licence Renewal From 03.03.2022-02.03.2023- fuel System Moss Side Depot,02/02/2022,0000475224,"1,314.00",Revenue,TRISCAN SYSTEMS LIMITED,0
South Ribble Borough Council,http://statistics.data.gov.uk/id/local-authority/30UE,Open Spaces,Services,4570,"Fell and remove: 2 x Ash Trees, 1 x Hawthorn, 1 x Maple Tree",16/02/2022,0000475539,"1,600.00",Revenue,Trunks Tree Care Ltd,0
South Ribble Borough Council,http://statistics.data.gov.uk/id/local-authority/30UE,Capital,Capital Vehicles,C440,Refurbishment of 10x 1100l bins at 135 per bin.,16/02/2022,0000475631,"1,350.00",Revenue,UK Container Maintenance Ltd,0
South Ribble Borough Council,http://statistics.data.gov.uk/id/local-authority/30UE,Economic Development,Miscellaneous Expenses,4851,"Marketing for MITP, 8 x Management Fee, Domain purchase & protection, Paid ads agreed original budget, Contingency funds, Marketing costs",09/02/2022,0000475394,750.00,Revenue,UK Media Events Ltd,0
South Ribble Borough Council,http://statistics.data.gov.uk/id/local-authority/30UE,Economic Development,Miscellaneous Expenses,4851,,09/02/2022,0000475394,80.00,Revenue,UK Media Events Ltd,0
South Ribble Borough Council,http://statistics.data.gov.uk/id/local-authority/30UE,Economic Development,Miscellaneous Expenses,4851,"Marketing for MITP, 8 x Management Fee, Domain purchase & protection, Paid ads agreed original budget, Contingency funds, Marketing costs",09/02/2022,0000475467,900.00,Revenue,UK Media Events Ltd,0
South Ribble Borough Council,http://statistics.data.gov.uk/id/local-authority/30UE,Economic Development,Miscellaneous Expenses,4851,,09/02/2022,0000475467,80.16,Revenue,UK Media Events Ltd,0
South Ribble Borough Council,http://statistics.data.gov.uk/id/local-authority/30UE,Economic Development,Miscellaneous Expenses,4851,Mick Brown to Compare the Music in the Park event,16/02/2022,0000475790,750.00,Revenue,UK Media Events Ltd,0
South Ribble Borough Council,http://statistics.data.gov.uk/id/local-authority/30UE,Economic Development,Miscellaneous Expenses,4851,NAME REDACTED to play at Music in the Park,16/02/2022,0000475791,"1,250.00",Revenue,UK Media Events Ltd,0
South Ribble Borough Council,http://statistics.data.gov.uk/id/local-authority/30UE,Economic Development,Grants & Subscriptions,4730,Grant to support delivery of Credit Union in South Ribble Year 1,02/02/2022,0000475531,"21,761.00",Revenue,Unify Credit Union Ltd,0
South Ribble Borough Council,http://statistics.data.gov.uk/id/local-authority/30UE,Regulatory Services,Services,4542,Water Samples from April 21 - March 22,02/02/2022,0000475123,251.26,Revenue,UNITED UTILITIES WATER PLC,0
South Ribble Borough Council,http://statistics.data.gov.uk/id/local-authority/30UE,Surplus or Deficit on Trading,Salaries,1121,"To offer an Interim Estates Surveyor position to NAME REDACTED, provide professions surveying services for the duration of the contract",02/02/2022,0000475290,"1,786.00",Revenue,Vivid Resourcing,0
South Ribble Borough Council,http://statistics.data.gov.uk/id/local-authority/30UE,Surplus or Deficit on Trading,Salaries,1121,"To offer an Interim Estates Surveyor position to NAME REDACTED, provide professions surveying services for the duration of the contract",09/02/2022,0000475506,"1,833.00",Revenue,Vivid Resourcing,0
South Ribble Borough Council,http://statistics.data.gov.uk/id/local-authority/30UE,Surplus or Deficit on Trading,Salaries,1121,"To offer an Interim Estates Surveyor position to NAME REDACTED, provide professions surveying services for the duration of the contract",16/02/2022,0000475758,"1,739.00",Revenue,Vivid Resourcing,0
South Ribble Borough Council,http://statistics.data.gov.uk/id/local-authority/30UE,Surplus or Deficit on Trading,Salaries,1121,"To offer an Interim Estates Surveyor position to NAME REDACTED, provide professions surveying services for the duration of the contract",16/02/2022,0000475874,"1,809.50",Revenue,Vivid Resourcing,0
South Ribble Borough Council,http://statistics.data.gov.uk/id/local-authority/30UE,Central Support Services,Communications & Comuting,4269,25 jul 2021,23/02/2022,0000476058,963.10,Revenue,VODAFONE RE:CABLE & WIRELESS UK,0
South Ribble Borough Council,http://statistics.data.gov.uk/id/local-authority/30UE,Central Support Services,Communications & Comuting,4269,26 jun 2021,23/02/2022,0000476059,"2,674.09",Revenue,VODAFONE RE:CABLE & WIRELESS UK,0
South Ribble Borough Council,http://statistics.data.gov.uk/id/local-authority/30UE,Central Support Services,Communications & Comuting,4269,26 aug 2021,23/02/2022,0000476061,462.91,Revenue,VODAFONE RE:CABLE & WIRELESS UK,0
South Ribble Borough Council,http://statistics.data.gov.uk/id/local-authority/30UE,Central Support Services,Communications & Comuting,4269,26 may 2021,23/02/2022,0000476062,"2,667.01",Revenue,VODAFONE RE:CABLE & WIRELESS UK,0
South Ribble Borough Council,http://statistics.data.gov.uk/id/local-authority/30UE,Central Support Services,Communications & Comuting,4269,25 sept 2021,23/02/2022,0000476063,460.50,Revenue,VODAFONE RE:CABLE & WIRELESS UK,0
South Ribble Borough Council,http://statistics.data.gov.uk/id/local-authority/30UE,Central Support Services,Communications & Comuting,4269,26 oct 2021,23/02/2022,0000476064,460.50,Revenue,VODAFONE RE:CABLE & WIRELESS UK,0
South Ribble Borough Council,http://statistics.data.gov.uk/id/local-authority/30UE,Central Support Services,Communications & Comuting,4247,01 Oct 202,23/02/2022,0000476066,"2,404.20",Revenue,VODAFONE RE:CABLE & WIRELESS UK,0
South Ribble Borough Council,http://statistics.data.gov.uk/id/local-authority/30UE,Central Support Services,Communications & Comuting,4247,01 Jun 2021,23/02/2022,0000476067,"2,404.20",Revenue,VODAFONE RE:CABLE & WIRELESS UK,0
South Ribble Borough Council,http://statistics.data.gov.uk/id/local-authority/30UE,Central Support Services,Communications & Comuting,4247,01 Nov 2021,23/02/2022,0000476068,"2,404.20",Revenue,VODAFONE RE:CABLE & WIRELESS UK,0
South Ribble Borough Council,http://statistics.data.gov.uk/id/local-authority/30UE,Central Support Services,Communications & Comuting,4247,01 Sept 2021,23/02/2022,0000476069,"2,404.20",Revenue,VODAFONE RE:CABLE & WIRELESS UK,0
South Ribble Borough Council,http://statistics.data.gov.uk/id/local-authority/30UE,Central Support Services,Communications & Comuting,4247,01 Jul 2021,23/02/2022,0000476070,"2,404.20",Revenue,VODAFONE RE:CABLE & WIRELESS UK,0
South Ribble Borough Council,http://statistics.data.gov.uk/id/local-authority/30UE,Central Support Services,Communications & Comuting,4247,01 feb 2022,23/02/2022,0000476071,"2,404.20",Revenue,VODAFONE RE:CABLE & WIRELESS UK,0
South Ribble Borough Council,http://statistics.data.gov.uk/id/local-authority/30UE,Central Support Services,Communications & Comuting,4247,01 Dec 2021,23/02/2022,0000476072,"2,404.20",Revenue,VODAFONE RE:CABLE & WIRELESS UK,0
South Ribble Borough Council,http://statistics.data.gov.uk/id/local-authority/30UE,Central Support Services,Communications & Comuting,4247,1 aug 2021,23/02/2022,0000476073,"2,404.20",Revenue,VODAFONE RE:CABLE & WIRELESS UK,0
South Ribble Borough Council,http://statistics.data.gov.uk/id/local-authority/30UE,Central Support Services,Communications & Comuting,4247,01 jan 2022,23/02/2022,0000476074,"2,404.20",Revenue,VODAFONE RE:CABLE & WIRELESS UK,0
South Ribble Borough Council,http://statistics.data.gov.uk/id/local-authority/30UE,Central Support Services,Furniture- Equip & Materials,4040,1 x wishbone FL19KKY JFC17976,23/02/2022,0000475996,300.00,Revenue,WALTON SUMMIT TRUCK CENTRE LTD,0
South Ribble Borough Council,http://statistics.data.gov.uk/id/local-authority/30UE,Open Spaces,Water,2511,17/10 to 15/1/22,02/02/2022,0000475501,"1,266.52",Revenue,WATER PLUS,0
South Ribble Borough Council,http://statistics.data.gov.uk/id/local-authority/30UE,Surplus or Deficit on Trading,Water,2511,18/11 to 9/2/22,23/02/2022,0000476031,261.25,Revenue,WaterPlus,0
South Ribble Borough Council,http://statistics.data.gov.uk/id/local-authority/30UE,Recreation & Sport,Premises Repair & Mtne,2021,"Cost of hire, 1x anti vandal toilet unit, 1x 500 gallon effluent tank, 1x anti vandal canteen unit, located at Penwortham Holme as per quotation",02/02/2022,0000475270,434.00,Revenue,Wernick Hire Ltd,0
South Ribble Borough Council,http://statistics.data.gov.uk/id/local-authority/30UE,Capital,Capital Vehicles,C440,Supply and delivery of two 3500kg Tipper Vehicles as per Lot 2 & 3 of the invitation to quote response dated 05/12/2019,02/02/2022,0000475014,"27,802.80",Revenue,Westway Nissan,0
South Ribble Borough Council,http://statistics.data.gov.uk/id/local-authority/30UE,Capital,Capital Vehicles,C440,road fund & 1st reg fee,02/02/2022,0000475014,315.00,Revenue,Westway Nissan,0
South Ribble Borough Council,http://statistics.data.gov.uk/id/local-authority/30UE,Local Tax Collection,Communications & Comuting,4291,Postage April to November 2021 (contract ends then),02/02/2022,0000475179,267.50,Revenue,WHISTL  UK LTD,0
South Ribble Borough Council,http://statistics.data.gov.uk/id/local-authority/30UE,Local Tax Collection,Communications & Comuting,4291,Postage April to November 2021 (contract ends then),23/02/2022,0000475803,"1,016.28",Revenue,WHISTL  UK LTD,0
South Ribble Borough Council,http://statistics.data.gov.uk/id/local-authority/30UE,Surplus or Deficit on Trading,Services,4510,For the provision of works for a Stock condition surveys to all SRBC commercial and investment stock,02/02/2022,0000475399,"16,075.00",Revenue,WhiteleyEaves Limited,0
South Ribble Borough Council,http://statistics.data.gov.uk/id/local-authority/30UE,Surplus or Deficit on Trading,Services,4510,For the provision of works for a Stock condition surveys to all SRBC commercial and investment stock,09/02/2022,0000475668,"7,425.00",Revenue,WhiteleyEaves Limited,0
South Ribble Borough Council,http://statistics.data.gov.uk/id/local-authority/30UE,Capital,Capital Other Land & Bldgs,C230,Provision of architect services - Leyland Town Deal - BASE2 � RIBA Stage 2,23/02/2022,0000476052,"11,595.93",Revenue,Wilson Mason LLP,0
South Ribble Borough Council,http://statistics.data.gov.uk/id/local-authority/30UE,Capital,Capital Other Land & Bldgs,C230,STRUCTURAL AND DRAINAGE SERVICES TO RIBA STAGE 3 FOR THE LEYLAND TOWN DEAL DEVELOPMENT,09/02/2022,0000475693,"13,477.24",Revenue,Woolgar Hunter Limited,0
South Ribble Borough Council,http://statistics.data.gov.uk/id/local-authority/30UE,Central Support Services,Communications & Comuting,4247,"Various Business Lines, Broadband and Fibre for South Ribble Council Buildings.",16/02/2022,0000475839,584.98,Revenue,Zen Internet,0
